Workbook

Sheet Info
B3: Guía interpretación hoja de cálculo
C5: Hojas en este archivo
D7: Nombre hoja | E7: Tipo | F7: Nombre | G7: Descripción
D8: R1 | E8: Resultados | F8: Resultados Principales | G8: Hoja principal de resultados: - En esta hoja se pueden visualizar los resultados de cuota de mercado del biodiesel y coste de las políticas de apoyo para alcanzar dichas cuotas de mercado para el período 2017-2036 - En la parte superior de la hoja se puede seleccionar el escenario a visualizar así como su composición.
D9: R2 | E9: Resultados | F9: Resultados Casación | G9: Esta hoja muestra la casación del mercado de biodiesel (calculos de la casación de la oferta y la demanda de biodiesel) para cada año 2017-2036. Modificando el año en la celda D4 se pueden visualizar los resultados de la casación para un año en particular.
D10: BI | E10: Biodiésel | F10: Biodiesel | G10: En esta hoja se presentan los escenarios de potencial y costes de diferentes para los diferentes tipos de biodiesel (para conformar la curva de oferta de biodiesel)
D11: IN | E11: Biodiésel | F11: Infraestructura conversión | G11: En esta hoja se calcula la evolución de la infraestructura necesaria para atender la demanda de biodiesel, así como la inversión necesaria
D12: Em | E12: Emisiones | F12: Reducción Emisiones GEI | G12: En esta hoja se muestran los supuestos y el cálculo del rango de factores de reducción de emisión GEI considerados
D13: DI | E13: Diésel | F13: Diésel | G13: En esta hoja se presentan los escenarios de costes y consumo del gasoil (para conformar la curva de demanda de referencia del diésel)
D14: DI_C | E14: Diésel | F14: Diésel vs Crudo | G14: En esta hoja de cálculo se obtiene la relación histórica entre precio del crudo y del diésel, para su empleo en los escenarios futuros
D15: PO | E15: General | F15: Políticas | G15: En esta hoja se establecen los escenarios de políticas de apoyo al biodiesel, tanto para el caso de incentivo económico como cuotas obligatorias. - En el caso de incentivo económico, se introduce el valor inicial a 2016 y éste se proyecta a futuro en base a la evolución de la inflación. - En el caso de cuotas, se pueden introducir valores diferenciados para cada año 2017-2036 para cada uno de los tres escenarios.
D16: MA | E16: General | F16: Macroeconómicos | G16: Definición de variables macroeconómicas - Tipo de cambio MXN/USD - Inflación
D17: P | E17: General | F17: Parámetros Generales | G17: Hoja de parámetros generales
C19: Código de colores
D21: En la figura de la derecha se muestra el código de colores empleado en la elaboración de esta hoja de cálculo. - Las celdas con estilos mostrados a la derecha incluyendo la palabra "Calculation" contienen el resultado de un cálculo y por lo tanto no han de ser modificadas. - Las celdas con estilos mostrados a la derecha incluyendo la palabra "Input" contienen valores de entrada, correpondiente a supuestos de cálculo.

Sheet R1
B3: Hoja de resultados principal (cuota de mercado del biodiesel y coste de políticas)
C6: Selección y composición escenarios
C9: Escenario de cálculo | F9: Supuestos Mercado Diésel | I9: Supuesto Políticas
C10: Escenario moderado
F11: Escenario costo diesel | G11: Escenario consumo diesel | I11: Instrumento apoyo
E12: Escenario tendencial | F12: Barato | G12: Alto | I12: Incentivo Económico
E13: Escenario moderado | F13: Moderado | G13: Moderado | I13: Cuota
E14: Escenario optimista | F14: Caro | G14: Bajo | I14: Cuota
C18: Resultados contribución del biodiesel (millones m3 y % cuota mercado)
C46: Resultados costes de política de apoyo al biodiesel (millones de pesos)
E78: Contribución del biodiesel (millones m3) y cuota de mercado
F80: Escenario consumo diesel | G80: =INDEX(Escenarios_General,MATCH('R1'!$C$10,Escenarios_General_CU,0),MATCH(F80,Escenarios_General_FU,0)) -> Moderado
E82: millones m3 | F82: 1 | G82: 2 | H82: 3 | I82: 4 | J82: 5 | K82: 6 | L82: 7 | M82: 8 | N82: 9 | O82: 10 | P82: 11 | Q82: 12 | R82: 13 | S82: 14 | T82: 15 | U82: 16 | V82: 17 | W82: 18 | X82: 19 | Y82: 20
F83: 2017 | G83: 2018 | H83: 2019 | I83: 2020 | J83: 2021 | K83: 2022 | L83: 2023 | M83: 2024 | N83: 2025 | O83: 2026 | P83: 2027 | Q83: 2028 | R83: 2029 | S83: 2030 | T83: 2031 | U83: 2032 | V83: 2033 | W83: 2034 | X83: 2035 | Y83: 2036
E84: Demanda total diesel | F84: =INDEX(Consumo_Diesel,MATCH($G$80,Consumo_Diesel_CU,0),MATCH(F$83,Consumo_Diesel_FU,0)) -> 22.78129104 | G84: 23.54990658 | H84: 24.31852212 | I84: 25.08713766 | J84: 25.8557532 | K84: 26.62436874 | L84: 27.39298428 | M84: 28.16159982 | N84: 28.93021536 | O84: 29.6988309 | P84: 30.46744644 | Q84: 31.23606198 | R84: 32.00467752 | S84: 32.77329306 | T84: 33.5419086 | U84: 34.31052414 | V84: 35.07913968 | W84: 35.84775522 | X84: 36.61637076 | Y84: 37.3849863
E86: millones m3 | F86: 1 | G86: 2 | H86: 3 | I86: 4 | J86: 5 | K86: 6 | L86: 7 | M86: 8 | N86: 9 | O86: 10 | P86: 11 | Q86: 12 | R86: 13 | S86: 14 | T86: 15 | U86: 16 | V86: 17 | W86: 18 | X86: 19 | Y86: 20
F87: 2017 | G87: 2018 | H87: 2019 | I87: 2020 | J87: 2021 | K87: 2022 | L87: 2023 | M87: 2024 | N87: 2025 | O87: 2026 | P87: 2027 | Q87: 2028 | R87: 2029 | S87: 2030 | T87: 2031 | U87: 2032 | V87: 2033 | W87: 2034 | X87: 2035 | Y87: 2036
E88: Volumen venta biodiesel | F88: =INDEX(ResultadosCasacion,MATCH(F$87,ResultadosCasacion_CU,0),MATCH($E$88,ResultadosCasacion_FU,0)) -> 0 | G88: 0.1 | H88: 0.1 | I88: 0.2 | J88: 0.2 | K88: 0.3 | L88: 0.3 | M88: 0.4 | N88: 0.5 | O88: 0.5 | P88: 0.6 | Q88: 0.7 | R88: 0.8 | S88: 0.9 | T88: 1 | U88: 1.1 | V88: 1.1 | W88: 1.1 | X88: 1.1 | Y88: 1.2
E89: Consumo diesel fósil | F89: =F84-F88 -> 22.78129104 | G89: 23.44990658 | H89: 24.21852212 | I89: 24.88713766 | J89: 25.6557532 | K89: 26.32436874 | L89: 27.09298428 | M89: 27.76159982 | N89: 28.43021536 | O89: 29.1988309 | P89: 29.86744644 | Q89: 30.53606198 | R89: 31.20467752 | S89: 31.87329306 | T89: 32.5419086 | U89: 33.21052414 | V89: 33.97913968 | W89: 34.74775522 | X89: 35.51637076 | Y89: 36.1849863
E90: Cuota de mercado (%) | F90: =IF(F88/F84=0,"",F88/F84) ->  | G90: =IF(G88/G84=0,"",G88/G84) -> 0.004246301346 | H90: =IF(H88/H84=0,"",H88/H84) -> 0.004112091989 | I90: 0.007972212801 | J90: 0.007735222349 | K90: 0.01126787279 | L90: 0.01095170927 | M90: 0.01420373851 | N90: 0.01728296847 | O90: 0.01683567955 | P90: 0.01969315023 | Q90: 0.02240999523 | R90: 0.02499634622 | S90: 0.02746138444 | T90: 0.02981344955 | U90: 0.03206013396 | V90: 0.03135766755 | W90: 0.03068532446 | X90: 0.03004120772 | Y90: 0.03209844696
E92: Coste del biodiesel (millones de pesos)
F94: 1 | G94: 2 | H94: 3 | I94: 4 | J94: 5 | K94: 6 | L94: 7 | M94: 8 | N94: 9 | O94: 10 | P94: 11 | Q94: 12 | R94: 13 | S94: 14 | T94: 15 | U94: 16 | V94: 17 | W94: 18 | X94: 19 | Y94: 20
F95: 2017 | G95: 2018 | H95: 2019 | I95: 2020 | J95: 2021 | K95: 2022 | L95: 2023 | M95: 2024 | N95: 2025 | O95: 2026 | P95: 2027 | Q95: 2028 | R95: 2029 | S95: 2030 | T95: 2031 | U95: 2032 | V95: 2033 | W95: 2034 | X95: 2035 | Y95: 2036
E96: Coste total biodiesel | F96: =INDEX(ResultadosCasacion,MATCH(F$95,ResultadosCasacion_CU,0),MATCH($E96,ResultadosCasacion_FU,0)) -> 0 | G96: 1359.480889 | H96: 1455.193458 | I96: 2966.18017 | J96: 3161.982932 | K96: 5527.333552 | L96: 5871.320228 | M96: 7977.706271 | N96: 10560.08482 | O96: 10761.91043 | P96: =INDEX(ResultadosCasacion,MATCH(P$95,ResultadosCasacion_CU,0),MATCH($E96,ResultadosCasacion_FU,0)) -> 13166.17089 | Q96: 15666.14512 | R96: 18267.40804 | S96: 20975.82741 | T96: 23797.57834 | U96: 26739.15851 | V96: 27323.45374 | W96: 27931.12078 | X96: 28563.0945 | Y96: 31876.74237
E97: Coste política apoyo | F97: 0 | G97: 471.2439289 | H97: 456.6235634 | I97: 889.1547896 | J97: 840.0617007 | K97: 1905.136431 | L97: 1841.706832 | M97: 2389.975695 | N97: 2822.783893 | O97: 2715.117471 | P97: 3123.773271 | Q97: 3481.369346 | R97: 3784.931693 | S97: 4031.33008 | T97: 4217.270315 | U97: 4339.286129 | V97: 4027.586464 | W97: 3703.418811 | X97: 3366.284452 | Y97: 3289.816057
E100: Reducción emisiones (MtCO2e/ano)
E102: tCO2e/M3 | F102: 1 | G102: 2 | H102: 3 | I102: 4 | J102: 5 | K102: 6 | L102: 7 | M102: 8 | N102: 9 | O102: 10 | P102: 11 | Q102: 12 | R102: 13 | S102: 14 | T102: 15 | U102: 16 | V102: 17 | W102: 18 | X102: 19 | Y102: 20
F103: 2017 | G103: 2018 | H103: 2019 | I103: 2020 | J103: 2021 | K103: 2022 | L103: 2023 | M103: 2024 | N103: 2025 | O103: 2026 | P103: 2027 | Q103: 2028 | R103: 2029 | S103: 2030 | T103: 2031 | U103: 2032 | V103: 2033 | W103: 2034 | X103: 2035 | Y103: 2036
E104: Min | F104: =F$88*INDEX(Red_Emisiones,MATCH($E$102,Red_Emisiones_CU,0),MATCH($E104,Red_Emisiones_FU,0)) -> 0 | G104: 0.1392483985 | H104: 0.1392483985 | I104: 0.278496797 | J104: 0.278496797 | K104: 0.4177451956 | L104: 0.4177451956 | M104: 0.5569935941 | N104: 0.6962419926 | O104: 0.6962419926 | P104: =P$88*INDEX(Red_Emisiones,MATCH($E$102,Red_Emisiones_CU,0),MATCH($E104,Red_Emisiones_FU,0)) -> 0.8354903911 | Q104: 0.9747387896 | R104: 1.113987188 | S104: 1.253235587 | T104: 1.392483985 | U104: 1.531732384 | V104: 1.531732384 | W104: 1.531732384 | X104: 1.531732384 | Y104: 1.670980782
E105: Max | F105: 0 | G105: 0.1989262836 | H105: 0.1989262836 | I105: 0.3978525672 | J105: 0.3978525672 | K105: 0.5967788508 | L105: 0.5967788508 | M105: 0.7957051344 | N105: 0.994631418 | O105: 0.994631418 | P105: 1.193557702 | Q105: 1.392483985 | R105: 1.591410269 | S105: 1.790336552 | T105: 1.989262836 | U105: 2.18818912 | V105: 2.18818912 | W105: 2.18818912 | X105: 2.18818912 | Y105: 2.387115403
E107: Reducción acumulada emisiones (MtCO2e)
F109: 1 | G109: 2 | H109: 3 | I109: 4 | J109: 5 | K109: 6 | L109: 7 | M109: 8 | N109: 9 | O109: 10 | P109: 11 | Q109: 12 | R109: 13 | S109: 14 | T109: 15 | U109: 16 | V109: 17 | W109: 18 | X109: 19 | Y109: 20
F110: 2017 | G110: 2018 | H110: 2019 | I110: 2020 | J110: 2021 | K110: 2022 | L110: 2023 | M110: 2024 | N110: 2025 | O110: 2026 | P110: 2027 | Q110: 2028 | R110: 2029 | S110: 2030 | T110: 2031 | U110: 2032 | V110: 2033 | W110: 2034 | X110: 2035 | Y110: 2036
E111: min | F111: =F104 -> 0 | G111: =F111+G104 -> 0.1392483985 | H111: =G111+H104 -> 0.278496797 | I111: 0.5569935941 | J111: 0.8354903911 | K111: 1.253235587 | L111: 1.670980782 | M111: 2.227974376 | N111: 2.924216369 | O111: 3.620458362 | P111: 4.455948753 | Q111: 5.430687542 | R111: 6.54467473 | S111: 7.797910317 | T111: 9.190394302 | U111: 10.72212669 | V111: 12.25385907 | W111: 13.78559145 | X111: 15.31732384 | Y111: 16.98830462
E112: max | F112: =F105 -> 0 | G112: =F112+G105 -> 0.1989262836 | H112: =G112+H105 -> 0.3978525672 | I112: 0.7957051344 | J112: 1.193557702 | K112: 1.790336552 | L112: 2.387115403 | M112: 3.182820538 | N112: 4.177451956 | O112: 5.172083374 | P112: 6.365641075 | Q112: 7.75812506 | R112: 9.349535329 | S112: 11.13987188 | T112: 13.12913472 | U112: 15.31732384 | V112: 17.50551296 | W112: 19.69370208 | X112: 21.8818912 | Y112: 24.2690066
E115: Coste mitigación ($MX/tCO2)
F117: 1 | G117: 2 | H117: 3 | I117: 4 | J117: 5 | K117: 6 | L117: 7 | M117: 8 | N117: 9 | O117: 10 | P117: 11 | Q117: 12 | R117: 13 | S117: 14 | T117: 15 | U117: 16 | V117: 17 | W117: 18 | X117: 19 | Y117: 20
F118: 2017 | G118: 2018 | H118: 2019 | I118: 2020 | J118: 2021 | K118: 2022 | L118: 2023 | M118: 2024 | N118: 2025 | O118: 2026 | P118: 2027 | Q118: 2028 | R118: 2029 | S118: 2030 | T118: 2031 | U118: 2032 | V118: 2033 | W118: 2034 | X118: 2035 | Y118: 2036
E119: Max | F119: =IFERROR(F$97/F104,"-") -> - | G119: =IFERROR(G$97/G104,"-") -> 3384.196399 | H119: 3279.201544 | I119: 3192.693054 | J119: 3016.414227 | K119: 4560.522661 | L119: 4408.684651 | M119: 4290.849519 | N119: 4054.314338 | O119: 3899.674969 | P119: 3738.850026 | Q119: 3571.592085 | R119: 3397.643827 | S119: 3216.737638 | T119: 3028.595201 | U119: 2832.927067 | V119: 2629.432208 | W119: 2417.797554 | X119: 2197.697514 | Y119: 1968.793473
E120: Min | F120: =IFERROR(F$97/F105,"-") -> - | G120: =IFERROR(G$97/G105,"-") -> 2368.93748 | H120: 2295.441081 | I120: 2234.885138 | J120: 2111.489959 | K120: 3192.365863 | L120: 3086.079256 | M120: 3003.594664 | N120: 2838.020036 | O120: 2729.772479 | P120: 2617.195018 | Q120: 2500.11446 | R120: 2378.350679 | S120: 2251.716346 | T120: 2120.016641 | U120: 1983.048947 | V120: 1840.602545 | W120: 1692.458288 | X120: 1538.38826 | Y120: 1378.155431
E123: Estimación ingresos adicionales máximos sector agrícola
E125: Ingresos adicionales en 2016 | F125: =BI_C!M12 -> 6.295 | G125: $MN/L
F127: 1 | G127: 2 | H127: 3 | I127: 4 | J127: 5 | K127: 6 | L127: 7 | M127: 8 | N127: 9 | O127: 10 | P127: 11 | Q127: 12 | R127: 13 | S127: 14 | T127: 15 | U127: 16 | V127: 17 | W127: 18 | X127: 19 | Y127: 20
F128: 2017 | G128: 2018 | H128: 2019 | I128: 2020 | J128: 2021 | K128: 2022 | L128: 2023 | M128: 2024 | N128: 2025 | O128: 2026 | P128: 2027 | Q128: 2028 | R128: 2029 | S128: 2030 | T128: 2031 | U128: 2032 | V128: 2033 | W128: 2034 | X128: 2035 | Y128: 2036
E129: Factor actualización coste | F129: =BI!H32 -> 1.075555556 | G129: =BI!I32 -> 1.096355556 | H129: =BI!J32 -> 1.173543111 | I129: =BI!K32 -> 1.196040391 | J129: =BI!L32 -> 1.274993118 | K129: =BI!M32 -> 1.299326176 | L129: =BI!N32 -> 1.380188112 | M129: =BI!O32 -> 1.406506747 | N129: =BI!P32 -> 1.489433684 | O129: =BI!Q32 -> 1.51789992 | P129: =BI!R32 -> 1.547504806 | Q129: =BI!S32 -> 1.578293887 | R129: =BI!T32 -> 1.610314531 | S129: =BI!U32 -> 1.643616002 | T129: =BI!V32 -> 1.678249531 | U129: =BI!W32 -> 1.714268401 | V129: =BI!X32 -> 1.751728026 | W129: =BI!Y32 -> 1.790686035 | X129: =BI!Z32 -> 1.831202366 | Y129: =BI!AA32 -> 1.873339349
E130: Ingresos adicionales $MN/litro | F130: =$F$125*F129 -> 6.770622222 | G130: =$F$125*G129 -> 6.901558222 | H130: 7.387453884 | I130: 7.529074262 | J130: 8.026081677 | K130: 8.179258277 | L130: 8.688284164 | M130: 8.853959975 | N130: 9.375985041 | O130: 9.555179998 | P130: 9.741542753 | Q130: 9.935360019 | R130: 10.13692998 | S130: 10.34656273 | T130: 10.56458079 | U130: 10.79131958 | V130: 11.02712792 | W130: 11.27236859 | X130: 11.52741889 | Y130: 11.7926712
E132: Volumen producido (millones m3) | F132: =IF(F88-BI!H40<0,0,F88-BI!H40) -> 0 | G132: =IF(G88-BI!I40<0,0,G88-BI!I40) -> 0 | H132: =IF(H88-BI!J40<0,0,H88-BI!J40) -> 0 | I132: =IF(I88-BI!K40<0,0,I88-BI!K40) -> 0 | J132: =IF(J88-BI!L40<0,0,J88-BI!L40) -> 0 | K132: =IF(K88-BI!M40<0,0,K88-BI!M40) -> 0.06 | L132: =IF(L88-BI!N40<0,0,L88-BI!N40) -> 0.06 | M132: =IF(M88-BI!O40<0,0,M88-BI!O40) -> 0.16 | N132: =IF(N88-BI!P40<0,0,N88-BI!P40) -> 0.26 | O132: =IF(O88-BI!Q40<0,0,O88-BI!Q40) -> 0.26 | P132: =IF(P88-BI!R40<0,0,P88-BI!R40) -> 0.36 | Q132: =IF(Q88-BI!S40<0,0,Q88-BI!S40) -> 0.46 | R132: =IF(R88-BI!T40<0,0,R88-BI!T40) -> 0.56 | S132: =IF(S88-BI!U40<0,0,S88-BI!U40) -> 0.66 | T132: =IF(T88-BI!V40<0,0,T88-BI!V40) -> 0.76 | U132: =IF(U88-BI!W40<0,0,U88-BI!W40) -> 0.86 | V132: =IF(V88-BI!X40<0,0,V88-BI!X40) -> 0.86 | W132: =IF(W88-BI!Y40<0,0,W88-BI!Y40) -> 0.86 | X132: =IF(X88-BI!Z40<0,0,X88-BI!Z40) -> 0.86 | Y132: =IF(Y88-BI!AA40<0,0,Y88-BI!AA40) -> 0.96
E134: Ingresos adicionales max/a (millones $MN) | F134: =F132*F130*1000 -> 0 | G134: =G132*G130*1000 -> 0 | H134: 0 | I134: 0 | J134: 0 | K134: 490.7554966 | L134: 521.2970498 | M134: 1416.633596 | N134: 2437.756111 | O134: 2484.346799 | P134: 3506.955391 | Q134: 4570.265609 | R134: 5676.680786 | S134: 6828.731402 | T134: 8029.081404 | U134: 9280.534841 | V134: 9483.330012 | W134: 9694.23699 | X134: 9913.580248 | Y134: 11320.96436
E135: Ingresos adicionales max acum (millones $MN) | F135: =F134 -> 0 | G135: =G134+F135 -> 0 | H135: =H134+G135 -> 0 | I135: 0 | J135: 0 | K135: 490.7554966 | L135: 1012.052546 | M135: 2428.686142 | N135: 4866.442253 | O135: 7350.789053 | P135: 10857.74444 | Q135: 15428.01005 | R135: 21104.69084 | S135: 27933.42224 | T135: 35962.50364 | U135: 45243.03848 | V135: 54726.3685 | W135: 64420.60549 | X135: 74334.18573 | Y135: 85655.15009
Y136: =Y135*0.7 -> 59958.60506

Sheet R2
B2: Casación oferta y demanda biodiesel por año
C4: Año | D4: 2017
C6: Resultados
C8: Demanda total biodiesel | D8: =IF($V$38>$X$38,0, IF(COUNTIF(Q38:Q488,"Demandado")<1,0, IFERROR(INDEX(P38:V488,MATCH("TRUE",P38:P488,0),6),$D$23))) -> 0 | E8: millones m3
C9: Demanda atendible | D9: =INDEX(Capacidad_Conversión,1,MATCH($D$4,Capacidad_Conversión_FU,0)) -> 0 | E9: millones m3
C10: Volumen venta biodiesel | D10: =IF(D9>D8,D8,D9) -> 0 | E10: millones m3
C12: Precio marginal | D12: =IF(V34>D24,V34,D24) -> 8.54074 | E12: peso/litro
C14: Costes totales biodiesel | D14: =SUMIF($R$39:$R$488,"vendido",AB$39:AB$488) -> 0 | E14: millones pesos
C15: Costes equivalentes gasoleo | D15: =SUMIF($R$39:$R$488,"vendido",AC$39:AC$488) -> 0 | E15: millones pesos
C16: Costes política apoyo | D16: =D14-D15 -> 0 | E16: millones pesos
C18: Curva demanda biodiesel
C20: Instrumento apoyo | D20: =INDEX(Escenarios_General,MATCH('R1'!$C$10,Escenarios_General_CU,0),MATCH($C$20,Escenarios_General_FU,0)) -> Cuota | E20: =IFERROR(INDEX(Objetivos_Politica,MATCH($D20,Objetivos_Politica_CU,0),MATCH($D$4,Objetivos_Politica_FU,0)),"-") -> 0
C21: Escenario consumo diesel | D21: =INDEX(Escenarios_General,MATCH('R1'!$C$10,Escenarios_General_CU,0),MATCH('R2'!$C$21,Escenarios_General_FU,0)) -> Moderado
C22: Escenario costo diesel | D22: =INDEX(Escenarios_General,MATCH('R1'!$C$10,Escenarios_General_CU,0),MATCH($C$22,Escenarios_General_FU,0)) -> Moderado
C23: Consumo diesel | D23: =INDEX(Consumo_Diesel,MATCH(D21,Consumo_Diesel_CU,0),MATCH($D$4,Consumo_Diesel_FU,0)) -> 22.78129104 | E23: millones m3
C24: Referencia gasoil | D24: =INDEX(CostoReferencia_Gasoleo,MATCH(D22,CostoReferencia_Gasoleo_CU,0),MATCH(D4,CostoReferencia_Gasoleo_FU,0)) -> 8.54074 | E24: peso / litro
C26: Coste máximo | D26: 50 | E26: peso / litro
C31: Curva oferta biodiesel | O31: ="Casación mercado biodiesel"&"_"&D4 -> Casación mercado biodiesel_2017 | AF31: Resultados casación 2017-2036
V33: Precio casación | X33: Precio marginal
D34: Datos por tipo de biodiesel | I34: Curva oferta ordenada | V34: =IF($V$38>$X$38,0, IFERROR(INDEX(P38:V488,MATCH("TRUE",P38:P488,0),7),MAX($V$38:$V$488))) -> 0 | X34: =IF($V$38>$X$38,0, IFERROR(INDEX(P38:V488,MATCH("TRUE",P38:P488,0),7),MAX($V$38:$V$488))) -> 0
E36: pesos/litro | F36: millones m3 | I36: pesos/litro | J36: millones m3 | U36: millones m3 | V36: pesos/litro | W36: pesos/litro | X36: pesos/litro | AB36: millones pesos | AC36: millones pesos | AH36: millones m3 | AJ36: millones m3 | AL36: millones pesos | AN36: millones pesos | AP36: peso/litro
D37: Tipo | E37: Costo | F37: Potencial | G37: Tipo | I37: Costo | J37: Potencial | K37: Tipo | L37: No Filas | M37: Filas acum. | P37: Punto casación | Q37: Demandado? | R37: Capacidad suficiente? | S37: Contador | T37: Filas | U37: Consumo | V37: =C31&"_"&D4 -> Curva oferta biodiesel_2017 | W37: =C24&"_"&D4 -> Referencia gasoil_2017 | X37: =C18&"_"&D4 -> Curva demanda biodiesel_2017 | Z37: Capacidad suficiente? | AB37: Gasto en biodiesel | AC37: Gasto en gasoleo | AH37: Demanda biodiesel | AJ37: Volumen venta biodiesel | AL37: Coste total biodiesel | AN37: Coste política apoyo | AP37: Coste apoyo por litro
D38: 1 | E38: =IFERROR(INDEX(Costo_Biodiesel,MATCH($D38,Costo_Biodiesel_CU,0),MATCH($D$4,Costo_Biodiesel_FU,0)),"") -> 13.33688889 | F38: =INDEX(Potencial_Biodiesel,MATCH($D38,Potencial_Biodiesel_CU,0),MATCH($D$4,Potencial_Biodiesel_FU,0)) -> 0.24 | G38: =INDEX(Potencial_Biodiesel,MATCH($D38,Potencial_Biodiesel_CU,0),MATCH($G$37,Potencial_Biodiesel_FU,0)) -> Aceites_usados | I38: =IFERROR(SMALL($E$38:$E$49,D38),"") -> 13.33688889 | J38: =IFERROR(INDEX($E$38:$F$49,MATCH(I38,$E$38:$E$49,0),2),"") -> 0.24 | K38: =IF(OR(I38=0,I38=""),"",INDEX($E$38:$G$49,MATCH(I38,$E$38:$E$49,0),3)) -> Aceites_usados | L38: =IFERROR(J38/$F$53,"") -> 2.4 | M38: =L38 -> 2.4 | S38: =IF(COUNTIF(M38:M49,0)=0,1,COUNTIF(M38:M49,0)=0) -> 1 | T38: 0 | U38: 0 | V38: =IFERROR(IF($F$51>0,INDEX($I$38:$I$49,S38,1),""),NA()) -> 13.33688889 | W38: =$D$24 -> 8.54074 | X38: =IF($U38>$F$51,"", IF($D$20=P!$K$10,$D$24+$E$20, IF($D$20=P!$K$9,$D$24, IF($U38<($E$20*$D$23),$D$26,$D$24)))) -> 8.54074 | Z38: =IF($U38<=$D$9,"TRUE","FALSE") -> TRUE | AB38: =IFERROR($U38*V38,0) -> 0 | AC38: =$U38*W38 -> 0
D39: 2 | E39: 15.25137778 | F39: 3.249 | G39: Cultivos_ClaseCosto1 | I39: =IFERROR(SMALL($E$38:$E$49,D39),"") -> 15.25137778 | J39: 3.249 | K39: Cultivos_ClaseCosto1 | L39: =IFERROR(J39/$F$53,"") -> 32.49 | M39: =IFERROR(M38+L39,"") -> 34.89 | P39: =IFERROR(IF(AND(Q39="Demandado",Q40<>"Demandado"),"TRUE","FALSE"),"") -> FALSE | Q39: =IFERROR(IF(AND(V39<=X39,V39<>0,V39<>"",$U39<$F$51), "Demandado", "No demandado"),"") -> No demandado | R39: =IF($U39<=$D$9,"Vendido","No vendido") -> No vendido | S39: =IF(T39>$F$51/$F$53,"", IFERROR(IF(T38=ROUND(INDEX($M$38:$M$49,S38,1),0),S38+1,S38),"")) -> 1 | T39: 1 | U39: 0.1 | V39: =IFERROR(IF($F$51>0,INDEX($I$38:$I$49,S39,1),""),NA()) -> 13.33688889 | W39: 8.54074 | X39: =IF($U39>$F$51,"", IF($D$20=P!$K$10,$D$24+$E$20, IF($D$20=P!$K$9,$D$24, IF($U39<($E$20*$D$23),$D$26,$D$24)))) -> 8.54074 | Z39: =IF($U39<=$D$9,"TRUE","FALSE") -> FALSE | AB39: =IFERROR(IF(AND($Q39="Demandado",$R39="Vendido"), IFERROR(($U39-$U38)*1000*$D$12,0),0),0) -> 0 | AC39: =IFERROR(IF(AND($Q39="Demandado",$R39="Vendido"), IFERROR(($U39-$U38)*1000*W39,0),0),0) -> 0 | AF39: 2017 | AH39: =D8 -> 0 | AJ39: =D10 -> 0 | AL39: =D14 -> 0 | AN39: =D16 -> 0 | AP39: =D12-D24 -> 0
D40: 3 | E40: 21.56488889 | F40: 1.135 | G40: Cultivos_ClaseCosto2 | I40: 16.83244444 | J40: 4 | K40: Import_Ref_Palma | L40: 40 | M40: =IFERROR(M39+L40,"") -> 74.89 | P40: FALSE | Q40: =IFERROR(IF(AND(V40<=X40,V40<>0,V40<>"",$U40<$F$51), "Demandado", "No demandado"),"") -> No demandado | R40: No vendido | S40: 1 | T40: 2 | U40: 0.2 | V40: 13.33688889 | W40: 8.54074 | X40: =IF($U40>$F$51,"", IF($D$20=P!$K$10,$D$24+$E$20, IF($D$20=P!$K$9,$D$24, IF($U40<($E$20*$D$23),$D$26,$D$24)))) -> 8.54074 | Z40: FALSE | AB40: 0 | AC40: =IFERROR(IF(AND($Q40="Demandado",$R40="Vendido"), IFERROR(($U40-$U39)*1000*W40,0),0),0) -> 0 | AF40: 2018 | AG40: 2018 | AH40: 0.1 | AI40: 2018 | AJ40: 0.1 | AK40: 2018 | AL40: 1359.480889 | AM40: 2018 | AN40: 471.2439289 | AO40: 2018 | AP40: 4.712439289
D41: 4 | E41: 27.69555556 | F41: 0.509 | G41: Cultivos_ClaseCosto3 | I41: 21.56488889 | J41: 1.135 | K41: Cultivos_ClaseCosto2 | L41: 11.35 | M41: 86.24 | P41: FALSE | Q41: No demandado | R41: No vendido | S41: 2 | T41: 3 | U41: 0.3 | V41: 15.25137778 | W41: 8.54074 | X41: =IF($U41>$F$51,"", IF($D$20=P!$K$10,$D$24+$E$20, IF($D$20=P!$K$9,$D$24, IF($U41<($E$20*$D$23),$D$26,$D$24)))) -> 8.54074 | Z41: FALSE | AB41: 0 | AC41: 0 | AF41: 2019 | AG41: 2019 | AH41: 0.1 | AI41: 2019 | AJ41: 0.1 | AK41: 2019 | AL41: 1455.193458 | AM41: 2019 | AN41: 456.6235634 | AO41: 2019 | AP41: 4.566235634
D42: 5 | E42: 32.83671111 | F42: 0.214 | G42: Cultivos_ClaseCosto4 | I42: 27.69555556 | J42: 0.509 | K42: Cultivos_ClaseCosto3 | L42: 5.09 | M42: 91.33 | P42: FALSE | Q42: No demandado | R42: No vendido | S42: 2 | T42: 4 | U42: 0.4 | V42: 15.25137778 | W42: 8.54074 | X42: =IF($U42>$F$51,"", IF($D$20=P!$K$10,$D$24+$E$20, IF($D$20=P!$K$9,$D$24, IF($U42<($E$20*$D$23),$D$26,$D$24)))) -> 8.54074 | Z42: FALSE | AB42: 0 | AC42: 0 | AF42: 2020 | AG42: 2020 | AH42: 0.2 | AI42: 2020 | AJ42: 0.2 | AK42: 2020 | AL42: 2966.18017 | AM42: 2020 | AN42: 889.1547896 | AO42: 2020 | AP42: 4.445773948
D43: 6 | E43: 38.51564444 | F43: 0.188 | G43: Cultivos_ClaseCosto5 | I43: 32.83671111 | J43: 0.214 | K43: Cultivos_ClaseCosto4 | L43: 2.14 | M43: 93.47 | P43: FALSE | Q43: No demandado | R43: No vendido | S43: 2 | T43: 5 | U43: 0.5 | V43: 15.25137778 | W43: 8.54074 | X43: =IF($U43>$F$51,"", IF($D$20=P!$K$10,$D$24+$E$20, IF($D$20=P!$K$9,$D$24, IF($U43<($E$20*$D$23),$D$26,$D$24)))) -> 8.54074 | Z43: FALSE | AB43: 0 | AC43: 0 | AF43: 2021 | AG43: 2021 | AH43: 0.2 | AI43: 2021 | AJ43: 0.2 | AK43: 2021 | AL43: 3161.982932 | AM43: 2021 | AN43: 840.0617007 | AO43: 2021 | AP43: 4.200308504
D44: 7 | E44: - | F44: - | I44: 38.51564444 | J44: 0.188 | K44: Cultivos_ClaseCosto5 | L44: 1.88 | M44: 95.35 | P44: FALSE | Q44: No demandado | R44: No vendido | S44: 2 | T44: 6 | U44: 0.6 | V44: 15.25137778 | W44: 8.54074 | X44: =IF($U44>$F$51,"", IF($D$20=P!$K$10,$D$24+$E$20, IF($D$20=P!$K$9,$D$24, IF($U44<($E$20*$D$23),$D$26,$D$24)))) -> 8.54074 | Z44: FALSE | AB44: 0 | AC44: 0 | AF44: 2022 | AG44: 2022 | AH44: 0.3 | AI44: 2022 | AJ44: 0.3 | AK44: 2022 | AL44: 5527.333552 | AM44: 2022 | AN44: 1905.136431 | AO44: 2022 | AP44: 6.35045477
D45: 8 | E45: - | F45: - | G45: - | P45: FALSE | Q45: No demandado | R45: No vendido | S45: 2 | T45: 7 | U45: 0.7 | V45: 15.25137778 | W45: 8.54074 | X45: =IF($U45>$F$51,"", IF($D$20=P!$K$10,$D$24+$E$20, IF($D$20=P!$K$9,$D$24, IF($U45<($E$20*$D$23),$D$26,$D$24)))) -> 8.54074 | Z45: FALSE | AB45: 0 | AC45: 0 | AF45: 2023 | AG45: 2023 | AH45: 0.3 | AI45: 2023 | AJ45: 0.3 | AK45: 2023 | AL45: 5871.320228 | AM45: 2023 | AN45: 1841.706832 | AO45: 2023 | AP45: 6.139022772
D46: 9 | E46: - | F46: - | G46: - | P46: FALSE | Q46: No demandado | R46: No vendido | S46: 2 | T46: 8 | U46: 0.8 | V46: 15.25137778 | W46: 8.54074 | X46: =IF($U46>$F$51,"", IF($D$20=P!$K$10,$D$24+$E$20, IF($D$20=P!$K$9,$D$24, IF($U46<($E$20*$D$23),$D$26,$D$24)))) -> 8.54074 | Z46: FALSE | AB46: 0 | AC46: 0 | AF46: 2024 | AG46: 2024 | AH46: 0.4 | AI46: 2024 | AJ46: 0.4 | AK46: 2024 | AL46: 7977.706271 | AM46: 2024 | AN46: 2389.975695 | AO46: 2024 | AP46: 5.974939239
D47: 10 | E47: - | F47: - | G47: - | P47: FALSE | Q47: No demandado | R47: No vendido | S47: 2 | T47: 9 | U47: 0.9 | V47: 15.25137778 | W47: 8.54074 | X47: =IF($U47>$F$51,"", IF($D$20=P!$K$10,$D$24+$E$20, IF($D$20=P!$K$9,$D$24, IF($U47<($E$20*$D$23),$D$26,$D$24)))) -> 8.54074 | Z47: FALSE | AB47: 0 | AC47: 0 | AF47: 2025 | AG47: 2025 | AH47: 0.5 | AI47: 2025 | AJ47: 0.5 | AK47: 2025 | AL47: 10560.08482 | AM47: 2025 | AN47: 2822.783893 | AO47: 2025 | AP47: 5.645567786
D48: 11 | E48: - | F48: - | G48: - | P48: FALSE | Q48: No demandado | R48: No vendido | S48: =IF(T48>$F$51/$F$53,"", IFERROR(IF(T47=ROUND(INDEX($M$38:$M$49,S47,1),0),S47+1,S47),"")) -> 2 | T48: 10 | U48: 1 | V48: 15.25137778 | W48: 8.54074 | X48: =IF($U48>$F$51,"", IF($D$20=P!$K$10,$D$24+$E$20, IF($D$20=P!$K$9,$D$24, IF($U48<($E$20*$D$23),$D$26,$D$24)))) -> 8.54074 | Z48: FALSE | AB48: 0 | AC48: 0 | AF48: 2026 | AG48: 2026 | AH48: 0.5 | AI48: 2026 | AJ48: 0.5 | AK48: 2026 | AL48: 10761.91043 | AM48: 2026 | AN48: 2715.117471 | AO48: 2026 | AP48: 5.430234942
D49: 12 | E49: 16.83244444 | F49: 4 | G49: Import_Ref_Palma | P49: FALSE | Q49: No demandado | R49: No vendido | S49: 2 | T49: 11 | U49: 1.1 | V49: 15.25137778 | W49: 8.54074 | X49: =IF($U49>$F$51,"", IF($D$20=P!$K$10,$D$24+$E$20, IF($D$20=P!$K$9,$D$24, IF($U49<($E$20*$D$23),$D$26,$D$24)))) -> 8.54074 | Z49: FALSE | AB49: 0 | AC49: 0 | AF49: 2027 | AG49: 2027 | AH49: 0.6 | AI49: 2027 | AJ49: 0.6 | AK49: 2027 | AL49: 13166.17089 | AM49: 2027 | AN49: 3123.773271 | AO49: 2027 | AP49: 5.206288784
P50: FALSE | Q50: No demandado | R50: No vendido | S50: 2 | T50: 12 | U50: 1.2 | V50: 15.25137778 | W50: 8.54074 | X50: =IF($U50>$F$51,"", IF($D$20=P!$K$10,$D$24+$E$20, IF($D$20=P!$K$9,$D$24, IF($U50<($E$20*$D$23),$D$26,$D$24)))) -> 8.54074 | Z50: FALSE | AB50: 0 | AC50: 0 | AF50: 2028 | AG50: 2028 | AH50: 0.7 | AI50: 2028 | AJ50: 0.7 | AK50: 2028 | AL50: 15666.14512 | AM50: 2028 | AN50: 3481.369346 | AO50: 2028 | AP50: 4.97338478
E51: Potencial total | F51: =SUM(F38:F49) -> 9.535 | P51: FALSE | Q51: No demandado | R51: No vendido | S51: 2 | T51: 13 | U51: 1.3 | V51: 15.25137778 | W51: 8.54074 | X51: =IF($U51>$F$51,"", IF($D$20=P!$K$10,$D$24+$E$20, IF($D$20=P!$K$9,$D$24, IF($U51<($E$20*$D$23),$D$26,$D$24)))) -> 8.54074 | Z51: FALSE | AB51: 0 | AC51: 0 | AF51: 2029 | AG51: 2029 | AH51: 0.8 | AI51: 2029 | AJ51: 0.8 | AK51: 2029 | AL51: 18267.40804 | AM51: 2029 | AN51: 3784.931693 | AO51: 2029 | AP51: 4.731164616
P52: FALSE | Q52: No demandado | R52: No vendido | S52: 2 | T52: 14 | U52: 1.4 | V52: 15.25137778 | W52: 8.54074 | X52: =IF($U52>$F$51,"", IF($D$20=P!$K$10,$D$24+$E$20, IF($D$20=P!$K$9,$D$24, IF($U52<($E$20*$D$23),$D$26,$D$24)))) -> 8.54074 | Z52: FALSE | AB52: 0 | AC52: 0 | AF52: 2030 | AG52: 2030 | AH52: 0.9 | AI52: 2030 | AJ52: 0.9 | AK52: 2030 | AL52: 20975.82741 | AM52: 2030 | AN52: 4031.33008 | AO52: 2030 | AP52: 4.479255645
E53: tamano fila | F53: 0.1 | G53: millones m3 | P53: FALSE | Q53: No demandado | R53: No vendido | S53: 2 | T53: 15 | U53: 1.5 | V53: 15.25137778 | W53: 8.54074 | X53: =IF($U53>$F$51,"", IF($D$20=P!$K$10,$D$24+$E$20, IF($D$20=P!$K$9,$D$24, IF($U53<($E$20*$D$23),$D$26,$D$24)))) -> 8.54074 | Z53: FALSE | AB53: 0 | AC53: 0 | AF53: 2031 | AG53: 2031 | AH53: 1 | AI53: 2031 | AJ53: 1 | AK53: 2031 | AL53: 23797.57834 | AM53: 2031 | AN53: 4217.270315 | AO53: 2031 | AP53: 4.217270315
E54: no filas | F54: =F51/F53 -> 95.35 | G54: filas | P54: FALSE | Q54: No demandado | R54: No vendido | S54: 2 | T54: 16 | U54: 1.6 | V54: 15.25137778 | W54: 8.54074 | X54: =IF($U54>$F$51,"", IF($D$20=P!$K$10,$D$24+$E$20, IF($D$20=P!$K$9,$D$24, IF($U54<($E$20*$D$23),$D$26,$D$24)))) -> 8.54074 | Z54: FALSE | AB54: 0 | AC54: 0 | AF54: 2032 | AG54: 2032 | AH54: 1.1 | AI54: 2032 | AJ54: 1.1 | AK54: 2032 | AL54: 26739.15851 | AM54: 2032 | AN54: 4339.286129 | AO54: 2032 | AP54: 3.944805572
P55: FALSE | Q55: No demandado | R55: No vendido | S55: 2 | T55: 17 | U55: 1.7 | V55: 15.25137778 | W55: 8.54074 | X55: =IF($U55>$F$51,"", IF($D$20=P!$K$10,$D$24+$E$20, IF($D$20=P!$K$9,$D$24, IF($U55<($E$20*$D$23),$D$26,$D$24)))) -> 8.54074 | Z55: FALSE | AB55: 0 | AC55: 0 | AF55: 2033 | AG55: 2033 | AH55: 1.1 | AI55: 2033 | AJ55: 1.1 | AK55: 2033 | AL55: 27323.45374 | AM55: 2033 | AN55: 4027.586464 | AO55: 2033 | AP55: 3.66144224
P56: FALSE | Q56: No demandado | R56: No vendido | S56: 2 | T56: 18 | U56: 1.8 | V56: 15.25137778 | W56: 8.54074 | X56: =IF($U56>$F$51,"", IF($D$20=P!$K$10,$D$24+$E$20, IF($D$20=P!$K$9,$D$24, IF($U56<($E$20*$D$23),$D$26,$D$24)))) -> 8.54074 | Z56: FALSE | AB56: 0 | AC56: 0 | AF56: 2034 | AG56: 2034 | AH56: 1.1 | AI56: 2034 | AJ56: 1.1 | AK56: 2034 | AL56: 27931.12078 | AM56: 2034 | AN56: 3703.418811 | AO56: 2034 | AP56: 3.366744374
P57: FALSE | Q57: No demandado | R57: No vendido | S57: 2 | T57: 19 | U57: 1.9 | V57: 15.25137778 | W57: 8.54074 | X57: =IF($U57>$F$51,"", IF($D$20=P!$K$10,$D$24+$E$20, IF($D$20=P!$K$9,$D$24, IF($U57<($E$20*$D$23),$D$26,$D$24)))) -> 8.54074 | Z57: FALSE | AB57: 0 | AC57: 0 | AF57: 2035 | AG57: 2035 | AH57: 1.1 | AI57: 2035 | AJ57: 1.1 | AK57: 2035 | AL57: 28563.0945 | AM57: 2035 | AN57: 3366.284452 | AO57: 2035 | AP57: 3.060258593
P58: FALSE | Q58: No demandado | R58: No vendido | S58: 2 | T58: 20 | U58: 2 | V58: 15.25137778 | W58: 8.54074 | X58: =IF($U58>$F$51,"", IF($D$20=P!$K$10,$D$24+$E$20, IF($D$20=P!$K$9,$D$24, IF($U58<($E$20*$D$23),$D$26,$D$24)))) -> 8.54074 | Z58: FALSE | AB58: 0 | AC58: 0 | AF58: 2036 | AG58: 2036 | AH58: 1.2 | AI58: 2036 | AJ58: 1.2 | AK58: 2036 | AL58: 31876.74237 | AM58: 2036 | AN58: 3289.816057 | AO58: 2036 | AP58: 2.741513381
P59: FALSE | Q59: No demandado | R59: No vendido | S59: 2 | T59: 21 | U59: 2.1 | V59: 15.25137778 | W59: 8.54074 | X59: =IF($U59>$F$51,"", IF($D$20=P!$K$10,$D$24+$E$20, IF($D$20=P!$K$9,$D$24, IF($U59<($E$20*$D$23),$D$26,$D$24)))) -> 8.54074 | Z59: FALSE | AB59: 0 | AC59: 0
P60: FALSE | Q60: No demandado | R60: No vendido | S60: 2 | T60: 22 | U60: 2.2 | V60: 15.25137778 | W60: 8.54074 | X60: =IF($U60>$F$51,"", IF($D$20=P!$K$10,$D$24+$E$20, IF($D$20=P!$K$9,$D$24, IF($U60<($E$20*$D$23),$D$26,$D$24)))) -> 8.54074 | Z60: FALSE | AB60: 0 | AC60: 0
P61: FALSE | Q61: No demandado | R61: No vendido | S61: 2 | T61: 23 | U61: 2.3 | V61: 15.25137778 | W61: 8.54074 | X61: =IF($U61>$F$51,"", IF($D$20=P!$K$10,$D$24+$E$20, IF($D$20=P!$K$9,$D$24, IF($U61<($E$20*$D$23),$D$26,$D$24)))) -> 8.54074 | Z61: FALSE | AB61: 0 | AC61: 0
P62: FALSE | Q62: No demandado | R62: No vendido | S62: 2 | T62: 24 | U62: 2.4 | V62: 15.25137778 | W62: 8.54074 | X62: =IF($U62>$F$51,"", IF($D$20=P!$K$10,$D$24+$E$20, IF($D$20=P!$K$9,$D$24, IF($U62<($E$20*$D$23),$D$26,$D$24)))) -> 8.54074 | Z62: FALSE | AB62: 0 | AC62: 0
P63: FALSE | Q63: No demandado | R63: No vendido | S63: 2 | T63: 25 | U63: 2.5 | V63: 15.25137778 | W63: 8.54074 | X63: =IF($U63>$F$51,"", IF($D$20=P!$K$10,$D$24+$E$20, IF($D$20=P!$K$9,$D$24, IF($U63<($E$20*$D$23),$D$26,$D$24)))) -> 8.54074 | Z63: FALSE | AB63: 0 | AC63: 0
P64: FALSE | Q64: No demandado | R64: No vendido | S64: 2 | T64: 26 | U64: 2.6 | V64: 15.25137778 | W64: 8.54074 | X64: =IF($U64>$F$51,"", IF($D$20=P!$K$10,$D$24+$E$20, IF($D$20=P!$K$9,$D$24, IF($U64<($E$20*$D$23),$D$26,$D$24)))) -> 8.54074 | Z64: FALSE | AB64: 0 | AC64: 0
P65: FALSE | Q65: No demandado | R65: No vendido | S65: 2 | T65: 27 | U65: 2.7 | V65: 15.25137778 | W65: 8.54074 | X65: =IF($U65>$F$51,"", IF($D$20=P!$K$10,$D$24+$E$20, IF($D$20=P!$K$9,$D$24, IF($U65<($E$20*$D$23),$D$26,$D$24)))) -> 8.54074 | Z65: FALSE | AB65: 0 | AC65: 0
P66: FALSE | Q66: No demandado | R66: No vendido | S66: 2 | T66: 28 | U66: 2.8 | V66: 15.25137778 | W66: 8.54074 | X66: =IF($U66>$F$51,"", IF($D$20=P!$K$10,$D$24+$E$20, IF($D$20=P!$K$9,$D$24, IF($U66<($E$20*$D$23),$D$26,$D$24)))) -> 8.54074 | Z66: FALSE | AB66: 0 | AC66: 0
P67: FALSE | Q67: No demandado | R67: No vendido | S67: 2 | T67: 29 | U67: 2.9 | V67: 15.25137778 | W67: 8.54074 | X67: =IF($U67>$F$51,"", IF($D$20=P!$K$10,$D$24+$E$20, IF($D$20=P!$K$9,$D$24, IF($U67<($E$20*$D$23),$D$26,$D$24)))) -> 8.54074 | Z67: FALSE | AB67: 0 | AC67: 0
P68: FALSE | Q68: No demandado | R68: No vendido | S68: 2 | T68: 30 | U68: 3 | V68: 15.25137778 | W68: 8.54074 | X68: =IF($U68>$F$51,"", IF($D$20=P!$K$10,$D$24+$E$20, IF($D$20=P!$K$9,$D$24, IF($U68<($E$20*$D$23),$D$26,$D$24)))) -> 8.54074 | Z68: FALSE | AB68: 0 | AC68: 0
P69: FALSE | Q69: No demandado | R69: No vendido | S69: 2 | T69: 31 | U69: 3.1 | V69: 15.25137778 | W69: 8.54074 | X69: =IF($U69>$F$51,"", IF($D$20=P!$K$10,$D$24+$E$20, IF($D$20=P!$K$9,$D$24, IF($U69<($E$20*$D$23),$D$26,$D$24)))) -> 8.54074 | Z69: FALSE | AB69: 0 | AC69: 0
P70: FALSE | Q70: No demandado | R70: No vendido | S70: 2 | T70: 32 | U70: 3.2 | V70: 15.25137778 | W70: 8.54074 | X70: =IF($U70>$F$51,"", IF($D$20=P!$K$10,$D$24+$E$20, IF($D$20=P!$K$9,$D$24, IF($U70<($E$20*$D$23),$D$26,$D$24)))) -> 8.54074 | Z70: FALSE | AB70: 0 | AC70: 0
P71: FALSE | Q71: No demandado | R71: No vendido | S71: 2 | T71: 33 | U71: 3.3 | V71: 15.25137778 | W71: 8.54074 | X71: =IF($U71>$F$51,"", IF($D$20=P!$K$10,$D$24+$E$20, IF($D$20=P!$K$9,$D$24, IF($U71<($E$20*$D$23),$D$26,$D$24)))) -> 8.54074 | Z71: FALSE | AB71: 0 | AC71: 0
P72: FALSE | Q72: No demandado | R72: No vendido | S72: 2 | T72: 34 | U72: 3.4 | V72: 15.25137778 | W72: 8.54074 | X72: =IF($U72>$F$51,"", IF($D$20=P!$K$10,$D$24+$E$20, IF($D$20=P!$K$9,$D$24, IF($U72<($E$20*$D$23),$D$26,$D$24)))) -> 8.54074 | Z72: FALSE | AB72: 0 | AC72: 0
P73: FALSE | Q73: No demandado | R73: No vendido | S73: 2 | T73: 35 | U73: 3.5 | V73: 15.25137778 | W73: 8.54074 | X73: =IF($U73>$F$51,"", IF($D$20=P!$K$10,$D$24+$E$20, IF($D$20=P!$K$9,$D$24, IF($U73<($E$20*$D$23),$D$26,$D$24)))) -> 8.54074 | Z73: FALSE | AB73: 0 | AC73: 0
P74: FALSE | Q74: No demandado | R74: No vendido | S74: 3 | T74: 36 | U74: 3.6 | V74: 16.83244444 | W74: 8.54074 | X74: =IF($U74>$F$51,"", IF($D$20=P!$K$10,$D$24+$E$20, IF($D$20=P!$K$9,$D$24, IF($U74<($E$20*$D$23),$D$26,$D$24)))) -> 8.54074 | Z74: FALSE | AB74: 0 | AC74: 0
P75: FALSE | Q75: No demandado | R75: No vendido | S75: 3 | T75: 37 | U75: 3.7 | V75: 16.83244444 | W75: 8.54074 | X75: =IF($U75>$F$51,"", IF($D$20=P!$K$10,$D$24+$E$20, IF($D$20=P!$K$9,$D$24, IF($U75<($E$20*$D$23),$D$26,$D$24)))) -> 8.54074 | Z75: FALSE | AB75: 0 | AC75: 0
P76: FALSE | Q76: No demandado | R76: No vendido | S76: 3 | T76: 38 | U76: 3.8 | V76: 16.83244444 | W76: 8.54074 | X76: =IF($U76>$F$51,"", IF($D$20=P!$K$10,$D$24+$E$20, IF($D$20=P!$K$9,$D$24, IF($U76<($E$20*$D$23),$D$26,$D$24)))) -> 8.54074 | Z76: FALSE | AB76: 0 | AC76: 0
P77: FALSE | Q77: No demandado | R77: No vendido | S77: 3 | T77: 39 | U77: 3.9 | V77: 16.83244444 | W77: 8.54074 | X77: =IF($U77>$F$51,"", IF($D$20=P!$K$10,$D$24+$E$20, IF($D$20=P!$K$9,$D$24, IF($U77<($E$20*$D$23),$D$26,$D$24)))) -> 8.54074 | Z77: FALSE | AB77: 0 | AC77: 0
P78: FALSE | Q78: No demandado | R78: No vendido | S78: 3 | T78: 40 | U78: 4 | V78: 16.83244444 | W78: 8.54074 | X78: =IF($U78>$F$51,"", IF($D$20=P!$K$10,$D$24+$E$20, IF($D$20=P!$K$9,$D$24, IF($U78<($E$20*$D$23),$D$26,$D$24)))) -> 8.54074 | Z78: FALSE | AB78: 0 | AC78: 0
P79: FALSE | Q79: No demandado | R79: No vendido | S79: 3 | T79: 41 | U79: 4.1 | V79: 16.83244444 | W79: 8.54074 | X79: =IF($U79>$F$51,"", IF($D$20=P!$K$10,$D$24+$E$20, IF($D$20=P!$K$9,$D$24, IF($U79<($E$20*$D$23),$D$26,$D$24)))) -> 8.54074 | Z79: FALSE | AB79: 0 | AC79: 0
P80: FALSE | Q80: No demandado | R80: No vendido | S80: 3 | T80: 42 | U80: 4.2 | V80: 16.83244444 | W80: 8.54074 | X80: =IF($U80>$F$51,"", IF($D$20=P!$K$10,$D$24+$E$20, IF($D$20=P!$K$9,$D$24, IF($U80<($E$20*$D$23),$D$26,$D$24)))) -> 8.54074 | Z80: FALSE | AB80: 0 | AC80: 0
P81: FALSE | Q81: No demandado | R81: No vendido | S81: 3 | T81: 43 | U81: 4.3 | V81: 16.83244444 | W81: 8.54074 | X81: =IF($U81>$F$51,"", IF($D$20=P!$K$10,$D$24+$E$20, IF($D$20=P!$K$9,$D$24, IF($U81<($E$20*$D$23),$D$26,$D$24)))) -> 8.54074 | Z81: FALSE | AB81: 0 | AC81: 0
P82: FALSE | Q82: No demandado | R82: No vendido | S82: 3 | T82: 44 | U82: 4.4 | V82: 16.83244444 | W82: 8.54074 | X82: =IF($U82>$F$51,"", IF($D$20=P!$K$10,$D$24+$E$20, IF($D$20=P!$K$9,$D$24, IF($U82<($E$20*$D$23),$D$26,$D$24)))) -> 8.54074 | Z82: FALSE | AB82: 0 | AC82: 0
P83: FALSE | Q83: No demandado | R83: No vendido | S83: 3 | T83: 45 | U83: 4.5 | V83: 16.83244444 | W83: 8.54074 | X83: =IF($U83>$F$51,"", IF($D$20=P!$K$10,$D$24+$E$20, IF($D$20=P!$K$9,$D$24, IF($U83<($E$20*$D$23),$D$26,$D$24)))) -> 8.54074 | Z83: FALSE | AB83: 0 | AC83: 0
P84: FALSE | Q84: No demandado | R84: No vendido | S84: 3 | T84: 46 | U84: 4.6 | V84: 16.83244444 | W84: 8.54074 | X84: =IF($U84>$F$51,"", IF($D$20=P!$K$10,$D$24+$E$20, IF($D$20=P!$K$9,$D$24, IF($U84<($E$20*$D$23),$D$26,$D$24)))) -> 8.54074 | Z84: FALSE | AB84: 0 | AC84: 0
P85: FALSE | Q85: No demandado | R85: No vendido | S85: 3 | T85: 47 | U85: 4.7 | V85: 16.83244444 | W85: 8.54074 | X85: =IF($U85>$F$51,"", IF($D$20=P!$K$10,$D$24+$E$20, IF($D$20=P!$K$9,$D$24, IF($U85<($E$20*$D$23),$D$26,$D$24)))) -> 8.54074 | Z85: FALSE | AB85: 0 | AC85: 0
P86: FALSE | Q86: No demandado | R86: No vendido | S86: 3 | T86: 48 | U86: 4.8 | V86: 16.83244444 | W86: 8.54074 | X86: =IF($U86>$F$51,"", IF($D$20=P!$K$10,$D$24+$E$20, IF($D$20=P!$K$9,$D$24, IF($U86<($E$20*$D$23),$D$26,$D$24)))) -> 8.54074 | Z86: FALSE | AB86: 0 | AC86: 0
P87: FALSE | Q87: No demandado | R87: No vendido | S87: 3 | T87: 49 | U87: 4.9 | V87: 16.83244444 | W87: 8.54074 | X87: =IF($U87>$F$51,"", IF($D$20=P!$K$10,$D$24+$E$20, IF($D$20=P!$K$9,$D$24, IF($U87<($E$20*$D$23),$D$26,$D$24)))) -> 8.54074 | Z87: FALSE | AB87: 0 | AC87: 0
P88: FALSE | Q88: No demandado | R88: No vendido | S88: 3 | T88: 50 | U88: 5 | V88: 16.83244444 | W88: 8.54074 | X88: =IF($U88>$F$51,"", IF($D$20=P!$K$10,$D$24+$E$20, IF($D$20=P!$K$9,$D$24, IF($U88<($E$20*$D$23),$D$26,$D$24)))) -> 8.54074 | Z88: FALSE | AB88: 0 | AC88: 0
P89: FALSE | Q89: No demandado | R89: No vendido | S89: 3 | T89: 51 | U89: 5.1 | V89: 16.83244444 | W89: 8.54074 | X89: =IF($U89>$F$51,"", IF($D$20=P!$K$10,$D$24+$E$20, IF($D$20=P!$K$9,$D$24, IF($U89<($E$20*$D$23),$D$26,$D$24)))) -> 8.54074 | Z89: FALSE | AB89: 0 | AC89: 0
P90: FALSE | Q90: No demandado | R90: No vendido | S90: 3 | T90: 52 | U90: 5.2 | V90: 16.83244444 | W90: 8.54074 | X90: =IF($U90>$F$51,"", IF($D$20=P!$K$10,$D$24+$E$20, IF($D$20=P!$K$9,$D$24, IF($U90<($E$20*$D$23),$D$26,$D$24)))) -> 8.54074 | Z90: FALSE | AB90: 0 | AC90: 0
P91: FALSE | Q91: No demandado | R91: No vendido | S91: 3 | T91: 53 | U91: 5.3 | V91: 16.83244444 | W91: 8.54074 | X91: =IF($U91>$F$51,"", IF($D$20=P!$K$10,$D$24+$E$20, IF($D$20=P!$K$9,$D$24, IF($U91<($E$20*$D$23),$D$26,$D$24)))) -> 8.54074 | Z91: FALSE | AB91: 0 | AC91: 0
P92: FALSE | Q92: No demandado | R92: No vendido | S92: 3 | T92: 54 | U92: 5.4 | V92: 16.83244444 | W92: 8.54074 | X92: =IF($U92>$F$51,"", IF($D$20=P!$K$10,$D$24+$E$20, IF($D$20=P!$K$9,$D$24, IF($U92<($E$20*$D$23),$D$26,$D$24)))) -> 8.54074 | Z92: FALSE | AB92: 0 | AC92: 0
P93: FALSE | Q93: No demandado | R93: No vendido | S93: 3 | T93: 55 | U93: 5.5 | V93: 16.83244444 | W93: 8.54074 | X93: =IF($U93>$F$51,"", IF($D$20=P!$K$10,$D$24+$E$20, IF($D$20=P!$K$9,$D$24, IF($U93<($E$20*$D$23),$D$26,$D$24)))) -> 8.54074 | Z93: FALSE | AB93: 0 | AC93: 0
P94: FALSE | Q94: No demandado | R94: No vendido | S94: 3 | T94: 56 | U94: 5.6 | V94: 16.83244444 | W94: 8.54074 | X94: =IF($U94>$F$51,"", IF($D$20=P!$K$10,$D$24+$E$20, IF($D$20=P!$K$9,$D$24, IF($U94<($E$20*$D$23),$D$26,$D$24)))) -> 8.54074 | Z94: FALSE | AB94: 0 | AC94: 0
P95: FALSE | Q95: No demandado | R95: No vendido | S95: 3 | T95: 57 | U95: 5.7 | V95: 16.83244444 | W95: 8.54074 | X95: =IF($U95>$F$51,"", IF($D$20=P!$K$10,$D$24+$E$20, IF($D$20=P!$K$9,$D$24, IF($U95<($E$20*$D$23),$D$26,$D$24)))) -> 8.54074 | Z95: FALSE | AB95: 0 | AC95: 0
P96: FALSE | Q96: No demandado | R96: No vendido | S96: 3 | T96: 58 | U96: 5.8 | V96: 16.83244444 | W96: 8.54074 | X96: =IF($U96>$F$51,"", IF($D$20=P!$K$10,$D$24+$E$20, IF($D$20=P!$K$9,$D$24, IF($U96<($E$20*$D$23),$D$26,$D$24)))) -> 8.54074 | Z96: FALSE | AB96: 0 | AC96: 0
P97: FALSE | Q97: No demandado | R97: No vendido | S97: 3 | T97: 59 | U97: 5.9 | V97: 16.83244444 | W97: 8.54074 | X97: =IF($U97>$F$51,"", IF($D$20=P!$K$10,$D$24+$E$20, IF($D$20=P!$K$9,$D$24, IF($U97<($E$20*$D$23),$D$26,$D$24)))) -> 8.54074 | Z97: FALSE | AB97: 0 | AC97: 0
P98: FALSE | Q98: No demandado | R98: No vendido | S98: 3 | T98: 60 | U98: 6 | V98: 16.83244444 | W98: 8.54074 | X98: =IF($U98>$F$51,"", IF($D$20=P!$K$10,$D$24+$E$20, IF($D$20=P!$K$9,$D$24, IF($U98<($E$20*$D$23),$D$26,$D$24)))) -> 8.54074 | Z98: FALSE | AB98: 0 | AC98: 0
P99: FALSE | Q99: No demandado | R99: No vendido | S99: 3 | T99: 61 | U99: 6.1 | V99: 16.83244444 | W99: 8.54074 | X99: =IF($U99>$F$51,"", IF($D$20=P!$K$10,$D$24+$E$20, IF($D$20=P!$K$9,$D$24, IF($U99<($E$20*$D$23),$D$26,$D$24)))) -> 8.54074 | Z99: FALSE | AB99: 0 | AC99: 0
P100: FALSE | Q100: No demandado | R100: No vendido | S100: 3 | T100: 62 | U100: 6.2 | V100: 16.83244444 | W100: 8.54074 | X100: =IF($U100>$F$51,"", IF($D$20=P!$K$10,$D$24+$E$20, IF($D$20=P!$K$9,$D$24, IF($U100<($E$20*$D$23),$D$26,$D$24)))) -> 8.54074 | Z100: FALSE | AB100: 0 | AC100: 0
P101: FALSE | Q101: No demandado | R101: No vendido | S101: 3 | T101: 63 | U101: 6.3 | V101: 16.83244444 | W101: 8.54074 | X101: =IF($U101>$F$51,"", IF($D$20=P!$K$10,$D$24+$E$20, IF($D$20=P!$K$9,$D$24, IF($U101<($E$20*$D$23),$D$26,$D$24)))) -> 8.54074 | Z101: FALSE | AB101: 0 | AC101: 0
P102: FALSE | Q102: No demandado | R102: No vendido | S102: 3 | T102: 64 | U102: 6.4 | V102: 16.83244444 | W102: =$D$24 -> 8.54074 | X102: =IF($U102>$F$51,"", IF($D$20=P!$K$10,$D$24+$E$20, IF($D$20=P!$K$9,$D$24, IF($U102<($E$20*$D$23),$D$26,$D$24)))) -> 8.54074 | Z102: FALSE | AB102: 0 | AC102: 0
P103: FALSE | Q103: No demandado | R103: No vendido | S103: 3 | T103: 65 | U103: 6.5 | V103: =IFERROR(IF($F$51>0,INDEX($I$38:$I$49,S103,1),""),NA()) -> 16.83244444 | W103: 8.54074 | X103: =IF($U103>$F$51,"", IF($D$20=P!$K$10,$D$24+$E$20, IF($D$20=P!$K$9,$D$24, IF($U103<($E$20*$D$23),$D$26,$D$24)))) -> 8.54074 | Z103: =IF($U103<=$D$9,"TRUE","FALSE") -> FALSE | AB103: =IFERROR(IF(AND($Q103="Demandado",$R103="Vendido"), IFERROR(($U103-$U102)*1000*$D$12,0),0),0) -> 0 | AC103: 0
P104: =IFERROR(IF(AND(Q104="Demandado",Q105<>"Demandado"),"TRUE","FALSE"),"") -> FALSE | Q104: =IFERROR(IF(AND(V104<=X104,V104<>0,V104<>"",$U104<$F$51), "Demandado", "No demandado"),"") -> No demandado | R104: =IF($U104<=$D$9,"Vendido","No vendido") -> No vendido | S104: 3 | T104: 66 | U104: 6.6 | V104: 16.83244444 | W104: 8.54074 | X104: =IF($U104>$F$51,"", IF($D$20=P!$K$10,$D$24+$E$20, IF($D$20=P!$K$9,$D$24, IF($U104<($E$20*$D$23),$D$26,$D$24)))) -> 8.54074 | Z104: FALSE | AB104: 0 | AC104: =IFERROR(IF(AND($Q104="Demandado",$R104="Vendido"), IFERROR(($U104-$U103)*1000*W104,0),0),0) -> 0
P105: FALSE | Q105: No demandado | R105: No vendido | S105: 3 | T105: 67 | U105: 6.7 | V105: 16.83244444 | W105: 8.54074 | X105: =IF($U105>$F$51,"", IF($D$20=P!$K$10,$D$24+$E$20, IF($D$20=P!$K$9,$D$24, IF($U105<($E$20*$D$23),$D$26,$D$24)))) -> 8.54074 | Z105: FALSE | AB105: 0 | AC105: 0
P106: FALSE | Q106: No demandado | R106: No vendido | S106: 3 | T106: 68 | U106: 6.8 | V106: 16.83244444 | W106: 8.54074 | X106: =IF($U106>$F$51,"", IF($D$20=P!$K$10,$D$24+$E$20, IF($D$20=P!$K$9,$D$24, IF($U106<($E$20*$D$23),$D$26,$D$24)))) -> 8.54074 | Z106: FALSE | AB106: 0 | AC106: 0
P107: FALSE | Q107: No demandado | R107: No vendido | S107: 3 | T107: 69 | U107: 6.9 | V107: 16.83244444 | W107: 8.54074 | X107: =IF($U107>$F$51,"", IF($D$20=P!$K$10,$D$24+$E$20, IF($D$20=P!$K$9,$D$24, IF($U107<($E$20*$D$23),$D$26,$D$24)))) -> 8.54074 | Z107: FALSE | AB107: 0 | AC107: 0
P108: FALSE | Q108: No demandado | R108: No vendido | S108: =IF(T108>$F$51/$F$53,"", IFERROR(IF(T107=ROUND(INDEX($M$38:$M$49,S107,1),0),S107+1,S107),"")) -> 3 | T108: 70 | U108: 7 | V108: 16.83244444 | W108: 8.54074 | X108: =IF($U108>$F$51,"", IF($D$20=P!$K$10,$D$24+$E$20, IF($D$20=P!$K$9,$D$24, IF($U108<($E$20*$D$23),$D$26,$D$24)))) -> 8.54074 | Z108: FALSE | AB108: 0 | AC108: 0
P109: FALSE | Q109: No demandado | R109: No vendido | S109: 3 | T109: 71 | U109: 7.1 | V109: 16.83244444 | W109: 8.54074 | X109: =IF($U109>$F$51,"", IF($D$20=P!$K$10,$D$24+$E$20, IF($D$20=P!$K$9,$D$24, IF($U109<($E$20*$D$23),$D$26,$D$24)))) -> 8.54074 | Z109: FALSE | AB109: 0 | AC109: 0
P110: FALSE | Q110: No demandado | R110: No vendido | S110: 3 | T110: 72 | U110: 7.2 | V110: 16.83244444 | W110: 8.54074 | X110: =IF($U110>$F$51,"", IF($D$20=P!$K$10,$D$24+$E$20, IF($D$20=P!$K$9,$D$24, IF($U110<($E$20*$D$23),$D$26,$D$24)))) -> 8.54074 | Z110: FALSE | AB110: 0 | AC110: 0
P111: FALSE | Q111: No demandado | R111: No vendido | S111: 3 | T111: 73 | U111: 7.3 | V111: 16.83244444 | W111: 8.54074 | X111: =IF($U111>$F$51,"", IF($D$20=P!$K$10,$D$24+$E$20, IF($D$20=P!$K$9,$D$24, IF($U111<($E$20*$D$23),$D$26,$D$24)))) -> 8.54074 | Z111: FALSE | AB111: 0 | AC111: 0
P112: FALSE | Q112: No demandado | R112: No vendido | S112: 3 | T112: 74 | U112: 7.4 | V112: 16.83244444 | W112: 8.54074 | X112: =IF($U112>$F$51,"", IF($D$20=P!$K$10,$D$24+$E$20, IF($D$20=P!$K$9,$D$24, IF($U112<($E$20*$D$23),$D$26,$D$24)))) -> 8.54074 | Z112: FALSE | AB112: 0 | AC112: 0
P113: FALSE | Q113: No demandado | R113: No vendido | S113: 3 | T113: 75 | U113: 7.5 | V113: 16.83244444 | W113: 8.54074 | X113: =IF($U113>$F$51,"", IF($D$20=P!$K$10,$D$24+$E$20, IF($D$20=P!$K$9,$D$24, IF($U113<($E$20*$D$23),$D$26,$D$24)))) -> 8.54074 | Z113: FALSE | AB113: 0 | AC113: 0
P114: FALSE | Q114: No demandado | R114: No vendido | S114: 4 | T114: 76 | U114: 7.6 | V114: 21.56488889 | W114: 8.54074 | X114: =IF($U114>$F$51,"", IF($D$20=P!$K$10,$D$24+$E$20, IF($D$20=P!$K$9,$D$24, IF($U114<($E$20*$D$23),$D$26,$D$24)))) -> 8.54074 | Z114: FALSE | AB114: 0 | AC114: 0
P115: FALSE | Q115: No demandado | R115: No vendido | S115: 4 | T115: 77 | U115: 7.7 | V115: 21.56488889 | W115: 8.54074 | X115: =IF($U115>$F$51,"", IF($D$20=P!$K$10,$D$24+$E$20, IF($D$20=P!$K$9,$D$24, IF($U115<($E$20*$D$23),$D$26,$D$24)))) -> 8.54074 | Z115: FALSE | AB115: 0 | AC115: 0
P116: FALSE | Q116: No demandado | R116: No vendido | S116: 4 | T116: 78 | U116: 7.8 | V116: 21.56488889 | W116: 8.54074 | X116: =IF($U116>$F$51,"", IF($D$20=P!$K$10,$D$24+$E$20, IF($D$20=P!$K$9,$D$24, IF($U116<($E$20*$D$23),$D$26,$D$24)))) -> 8.54074 | Z116: FALSE | AB116: 0 | AC116: 0
P117: FALSE | Q117: No demandado | R117: No vendido | S117: 4 | T117: 79 | U117: 7.9 | V117: 21.56488889 | W117: 8.54074 | X117: =IF($U117>$F$51,"", IF($D$20=P!$K$10,$D$24+$E$20, IF($D$20=P!$K$9,$D$24, IF($U117<($E$20*$D$23),$D$26,$D$24)))) -> 8.54074 | Z117: FALSE | AB117: 0 | AC117: 0
P118: FALSE | Q118: No demandado | R118: No vendido | S118: 4 | T118: 80 | U118: 8 | V118: 21.56488889 | W118: 8.54074 | X118: =IF($U118>$F$51,"", IF($D$20=P!$K$10,$D$24+$E$20, IF($D$20=P!$K$9,$D$24, IF($U118<($E$20*$D$23),$D$26,$D$24)))) -> 8.54074 | Z118: FALSE | AB118: 0 | AC118: 0
P119: FALSE | Q119: No demandado | R119: No vendido | S119: 4 | T119: 81 | U119: 8.1 | V119: 21.56488889 | W119: 8.54074 | X119: =IF($U119>$F$51,"", IF($D$20=P!$K$10,$D$24+$E$20, IF($D$20=P!$K$9,$D$24, IF($U119<($E$20*$D$23),$D$26,$D$24)))) -> 8.54074 | Z119: FALSE | AB119: 0 | AC119: 0
P120: FALSE | Q120: No demandado | R120: No vendido | S120: 4 | T120: 82 | U120: 8.2 | V120: 21.56488889 | W120: 8.54074 | X120: =IF($U120>$F$51,"", IF($D$20=P!$K$10,$D$24+$E$20, IF($D$20=P!$K$9,$D$24, IF($U120<($E$20*$D$23),$D$26,$D$24)))) -> 8.54074 | Z120: FALSE | AB120: 0 | AC120: 0
P121: FALSE | Q121: No demandado | R121: No vendido | S121: 4 | T121: 83 | U121: 8.3 | V121: 21.56488889 | W121: 8.54074 | X121: =IF($U121>$F$51,"", IF($D$20=P!$K$10,$D$24+$E$20, IF($D$20=P!$K$9,$D$24, IF($U121<($E$20*$D$23),$D$26,$D$24)))) -> 8.54074 | Z121: FALSE | AB121: 0 | AC121: 0
P122: FALSE | Q122: No demandado | R122: No vendido | S122: 4 | T122: 84 | U122: 8.4 | V122: 21.56488889 | W122: 8.54074 | X122: =IF($U122>$F$51,"", IF($D$20=P!$K$10,$D$24+$E$20, IF($D$20=P!$K$9,$D$24, IF($U122<($E$20*$D$23),$D$26,$D$24)))) -> 8.54074 | Z122: FALSE | AB122: 0 | AC122: 0
P123: FALSE | Q123: No demandado | R123: No vendido | S123: 4 | T123: 85 | U123: 8.5 | V123: 21.56488889 | W123: 8.54074 | X123: =IF($U123>$F$51,"", IF($D$20=P!$K$10,$D$24+$E$20, IF($D$20=P!$K$9,$D$24, IF($U123<($E$20*$D$23),$D$26,$D$24)))) -> 8.54074 | Z123: FALSE | AB123: 0 | AC123: 0
P124: FALSE | Q124: No demandado | R124: No vendido | S124: 4 | T124: 86 | U124: 8.6 | V124: 21.56488889 | W124: 8.54074 | X124: =IF($U124>$F$51,"", IF($D$20=P!$K$10,$D$24+$E$20, IF($D$20=P!$K$9,$D$24, IF($U124<($E$20*$D$23),$D$26,$D$24)))) -> 8.54074 | Z124: FALSE | AB124: 0 | AC124: 0
P125: FALSE | Q125: No demandado | R125: No vendido | S125: 5 | T125: 87 | U125: 8.7 | V125: 27.69555556 | W125: 8.54074 | X125: =IF($U125>$F$51,"", IF($D$20=P!$K$10,$D$24+$E$20, IF($D$20=P!$K$9,$D$24, IF($U125<($E$20*$D$23),$D$26,$D$24)))) -> 8.54074 | Z125: FALSE | AB125: 0 | AC125: 0
P126: FALSE | Q126: No demandado | R126: No vendido | S126: 5 | T126: 88 | U126: 8.8 | V126: 27.69555556 | W126: 8.54074 | X126: =IF($U126>$F$51,"", IF($D$20=P!$K$10,$D$24+$E$20, IF($D$20=P!$K$9,$D$24, IF($U126<($E$20*$D$23),$D$26,$D$24)))) -> 8.54074 | Z126: FALSE | AB126: 0 | AC126: 0
P127: FALSE | Q127: No demandado | R127: No vendido | S127: 5 | T127: 89 | U127: 8.9 | V127: 27.69555556 | W127: 8.54074 | X127: =IF($U127>$F$51,"", IF($D$20=P!$K$10,$D$24+$E$20, IF($D$20=P!$K$9,$D$24, IF($U127<($E$20*$D$23),$D$26,$D$24)))) -> 8.54074 | Z127: FALSE | AB127: 0 | AC127: 0
P128: FALSE | Q128: No demandado | R128: No vendido | S128: 5 | T128: 90 | U128: 9 | V128: 27.69555556 | W128: 8.54074 | X128: =IF($U128>$F$51,"", IF($D$20=P!$K$10,$D$24+$E$20, IF($D$20=P!$K$9,$D$24, IF($U128<($E$20*$D$23),$D$26,$D$24)))) -> 8.54074 | Z128: FALSE | AB128: 0 | AC128: 0
P129: FALSE | Q129: No demandado | R129: No vendido | S129: 5 | T129: 91 | U129: 9.1 | V129: 27.69555556 | W129: 8.54074 | X129: =IF($U129>$F$51,"", IF($D$20=P!$K$10,$D$24+$E$20, IF($D$20=P!$K$9,$D$24, IF($U129<($E$20*$D$23),$D$26,$D$24)))) -> 8.54074 | Z129: FALSE | AB129: 0 | AC129: 0
P130: FALSE | Q130: No demandado | R130: No vendido | S130: 6 | T130: 92 | U130: 9.2 | V130: 32.83671111 | W130: 8.54074 | X130: =IF($U130>$F$51,"", IF($D$20=P!$K$10,$D$24+$E$20, IF($D$20=P!$K$9,$D$24, IF($U130<($E$20*$D$23),$D$26,$D$24)))) -> 8.54074 | Z130: FALSE | AB130: 0 | AC130: 0
P131: FALSE | Q131: No demandado | R131: No vendido | S131: 6 | T131: 93 | U131: 9.3 | V131: 32.83671111 | W131: 8.54074 | X131: =IF($U131>$F$51,"", IF($D$20=P!$K$10,$D$24+$E$20, IF($D$20=P!$K$9,$D$24, IF($U131<($E$20*$D$23),$D$26,$D$24)))) -> 8.54074 | Z131: FALSE | AB131: 0 | AC131: 0
P132: FALSE | Q132: No demandado | R132: No vendido | S132: 7 | T132: 94 | U132: 9.4 | V132: 38.51564444 | W132: 8.54074 | X132: =IF($U132>$F$51,"", IF($D$20=P!$K$10,$D$24+$E$20, IF($D$20=P!$K$9,$D$24, IF($U132<($E$20*$D$23),$D$26,$D$24)))) -> 8.54074 | Z132: FALSE | AB132: 0 | AC132: 0
P133: FALSE | Q133: No demandado | R133: No vendido | S133: 7 | T133: 95 | U133: 9.5 | V133: 38.51564444 | W133: 8.54074 | X133: =IF($U133>$F$51,"", IF($D$20=P!$K$10,$D$24+$E$20, IF($D$20=P!$K$9,$D$24, IF($U133<($E$20*$D$23),$D$26,$D$24)))) -> 8.54074 | Z133: FALSE | AB133: 0 | AC133: 0
P134: FALSE | R134: No vendido | T134: 96 | U134: 9.6 | W134: 8.54074 | X134: =IF($U134>$F$51,"", IF($D$20=P!$K$10,$D$24+$E$20, IF($D$20=P!$K$9,$D$24, IF($U134<($E$20*$D$23),$D$26,$D$24)))) ->  | Z134: FALSE | AB134: 0 | AC134: 0
P135: FALSE | R135: No vendido | T135: 97 | U135: 9.7 | W135: 8.54074 | X135: =IF($U135>$F$51,"", IF($D$20=P!$K$10,$D$24+$E$20, IF($D$20=P!$K$9,$D$24, IF($U135<($E$20*$D$23),$D$26,$D$24)))) ->  | Z135: FALSE | AB135: 0 | AC135: 0
P136: FALSE | R136: No vendido | T136: 98 | U136: 9.8 | W136: 8.54074 | X136: =IF($U136>$F$51,"", IF($D$20=P!$K$10,$D$24+$E$20, IF($D$20=P!$K$9,$D$24, IF($U136<($E$20*$D$23),$D$26,$D$24)))) ->  | Z136: FALSE | AB136: 0 | AC136: 0
P137: FALSE | R137: No vendido | T137: 99 | U137: 9.9 | W137: 8.54074 | X137: =IF($U137>$F$51,"", IF($D$20=P!$K$10,$D$24+$E$20, IF($D$20=P!$K$9,$D$24, IF($U137<($E$20*$D$23),$D$26,$D$24)))) ->  | Z137: FALSE | AB137: 0 | AC137: 0
P138: FALSE | R138: No vendido | T138: 100 | U138: 10 | W138: 8.54074 | X138: =IF($U138>$F$51,"", IF($D$20=P!$K$10,$D$24+$E$20, IF($D$20=P!$K$9,$D$24, IF($U138<($E$20*$D$23),$D$26,$D$24)))) ->  | Z138: FALSE | AB138: 0 | AC138: 0
P139: FALSE | R139: No vendido | T139: 101 | U139: 10.1 | W139: 8.54074 | X139: =IF($U139>$F$51,"", IF($D$20=P!$K$10,$D$24+$E$20, IF($D$20=P!$K$9,$D$24, IF($U139<($E$20*$D$23),$D$26,$D$24)))) ->  | Z139: FALSE | AB139: 0 | AC139: 0
P140: FALSE | R140: No vendido | T140: 102 | U140: 10.2 | W140: 8.54074 | X140: =IF($U140>$F$51,"", IF($D$20=P!$K$10,$D$24+$E$20, IF($D$20=P!$K$9,$D$24, IF($U140<($E$20*$D$23),$D$26,$D$24)))) ->  | Z140: FALSE | AB140: 0 | AC140: 0
P141: FALSE | R141: No vendido | T141: 103 | U141: 10.3 | W141: 8.54074 | X141: =IF($U141>$F$51,"", IF($D$20=P!$K$10,$D$24+$E$20, IF($D$20=P!$K$9,$D$24, IF($U141<($E$20*$D$23),$D$26,$D$24)))) ->  | Z141: FALSE | AB141: 0 | AC141: 0
P142: FALSE | R142: No vendido | T142: 104 | U142: 10.4 | W142: 8.54074 | X142: =IF($U142>$F$51,"", IF($D$20=P!$K$10,$D$24+$E$20, IF($D$20=P!$K$9,$D$24, IF($U142<($E$20*$D$23),$D$26,$D$24)))) ->  | Z142: FALSE | AB142: 0 | AC142: 0
P143: FALSE | R143: No vendido | T143: 105 | U143: 10.5 | W143: 8.54074 | X143: =IF($U143>$F$51,"", IF($D$20=P!$K$10,$D$24+$E$20, IF($D$20=P!$K$9,$D$24, IF($U143<($E$20*$D$23),$D$26,$D$24)))) ->  | Z143: FALSE | AB143: 0 | AC143: 0
P144: FALSE | R144: No vendido | T144: 106 | U144: 10.6 | W144: 8.54074 | X144: =IF($U144>$F$51,"", IF($D$20=P!$K$10,$D$24+$E$20, IF($D$20=P!$K$9,$D$24, IF($U144<($E$20*$D$23),$D$26,$D$24)))) ->  | Z144: FALSE | AB144: 0 | AC144: 0
P145: FALSE | R145: No vendido | T145: 107 | U145: 10.7 | W145: 8.54074 | X145: =IF($U145>$F$51,"", IF($D$20=P!$K$10,$D$24+$E$20, IF($D$20=P!$K$9,$D$24, IF($U145<($E$20*$D$23),$D$26,$D$24)))) ->  | Z145: FALSE | AB145: 0 | AC145: 0
P146: FALSE | R146: No vendido | T146: 108 | U146: 10.8 | W146: 8.54074 | X146: =IF($U146>$F$51,"", IF($D$20=P!$K$10,$D$24+$E$20, IF($D$20=P!$K$9,$D$24, IF($U146<($E$20*$D$23),$D$26,$D$24)))) ->  | Z146: FALSE | AB146: 0 | AC146: 0
P147: FALSE | R147: No vendido | T147: 109 | U147: 10.9 | W147: 8.54074 | X147: =IF($U147>$F$51,"", IF($D$20=P!$K$10,$D$24+$E$20, IF($D$20=P!$K$9,$D$24, IF($U147<($E$20*$D$23),$D$26,$D$24)))) ->  | Z147: FALSE | AB147: 0 | AC147: 0
P148: FALSE | R148: No vendido | T148: 110 | U148: 11 | W148: 8.54074 | X148: =IF($U148>$F$51,"", IF($D$20=P!$K$10,$D$24+$E$20, IF($D$20=P!$K$9,$D$24, IF($U148<($E$20*$D$23),$D$26,$D$24)))) ->  | Z148: FALSE | AB148: 0 | AC148: 0
P149: FALSE | R149: No vendido | T149: 111 | U149: 11.1 | W149: 8.54074 | X149: =IF($U149>$F$51,"", IF($D$20=P!$K$10,$D$24+$E$20, IF($D$20=P!$K$9,$D$24, IF($U149<($E$20*$D$23),$D$26,$D$24)))) ->  | Z149: FALSE | AB149: 0 | AC149: 0
P150: FALSE | R150: No vendido | T150: 112 | U150: 11.2 | W150: 8.54074 | X150: =IF($U150>$F$51,"", IF($D$20=P!$K$10,$D$24+$E$20, IF($D$20=P!$K$9,$D$24, IF($U150<($E$20*$D$23),$D$26,$D$24)))) ->  | Z150: FALSE | AB150: 0 | AC150: 0
P151: FALSE | R151: No vendido | T151: 113 | U151: 11.3 | W151: 8.54074 | X151: =IF($U151>$F$51,"", IF($D$20=P!$K$10,$D$24+$E$20, IF($D$20=P!$K$9,$D$24, IF($U151<($E$20*$D$23),$D$26,$D$24)))) ->  | Z151: FALSE | AB151: 0 | AC151: 0
P152: FALSE | R152: No vendido | T152: 114 | U152: 11.4 | W152: 8.54074 | X152: =IF($U152>$F$51,"", IF($D$20=P!$K$10,$D$24+$E$20, IF($D$20=P!$K$9,$D$24, IF($U152<($E$20*$D$23),$D$26,$D$24)))) ->  | Z152: FALSE | AB152: 0 | AC152: 0
P153: FALSE | R153: No vendido | T153: 115 | U153: 11.5 | W153: 8.54074 | X153: =IF($U153>$F$51,"", IF($D$20=P!$K$10,$D$24+$E$20, IF($D$20=P!$K$9,$D$24, IF($U153<($E$20*$D$23),$D$26,$D$24)))) ->  | Z153: FALSE | AB153: 0 | AC153: 0
P154: FALSE | R154: No vendido | T154: 116 | U154: 11.6 | W154: 8.54074 | X154: =IF($U154>$F$51,"", IF($D$20=P!$K$10,$D$24+$E$20, IF($D$20=P!$K$9,$D$24, IF($U154<($E$20*$D$23),$D$26,$D$24)))) ->  | Z154: FALSE | AB154: 0 | AC154: 0
P155: FALSE | R155: No vendido | T155: 117 | U155: 11.7 | W155: 8.54074 | X155: =IF($U155>$F$51,"", IF($D$20=P!$K$10,$D$24+$E$20, IF($D$20=P!$K$9,$D$24, IF($U155<($E$20*$D$23),$D$26,$D$24)))) ->  | Z155: FALSE | AB155: 0 | AC155: 0
P156: FALSE | R156: No vendido | T156: 118 | U156: 11.8 | W156: 8.54074 | X156: =IF($U156>$F$51,"", IF($D$20=P!$K$10,$D$24+$E$20, IF($D$20=P!$K$9,$D$24, IF($U156<($E$20*$D$23),$D$26,$D$24)))) ->  | Z156: FALSE | AB156: 0 | AC156: 0
P157: FALSE | R157: No vendido | T157: 119 | U157: 11.9 | W157: 8.54074 | X157: =IF($U157>$F$51,"", IF($D$20=P!$K$10,$D$24+$E$20, IF($D$20=P!$K$9,$D$24, IF($U157<($E$20*$D$23),$D$26,$D$24)))) ->  | Z157: FALSE | AB157: 0 | AC157: 0
P158: FALSE | R158: No vendido | T158: 120 | U158: 12 | W158: 8.54074 | X158: =IF($U158>$F$51,"", IF($D$20=P!$K$10,$D$24+$E$20, IF($D$20=P!$K$9,$D$24, IF($U158<($E$20*$D$23),$D$26,$D$24)))) ->  | Z158: FALSE | AB158: 0 | AC158: 0
P159: FALSE | R159: No vendido | T159: 121 | U159: 12.1 | W159: 8.54074 | X159: =IF($U159>$F$51,"", IF($D$20=P!$K$10,$D$24+$E$20, IF($D$20=P!$K$9,$D$24, IF($U159<($E$20*$D$23),$D$26,$D$24)))) ->  | Z159: FALSE | AB159: 0 | AC159: 0
P160: FALSE | R160: No vendido | T160: 122 | U160: 12.2 | W160: 8.54074 | X160: =IF($U160>$F$51,"", IF($D$20=P!$K$10,$D$24+$E$20, IF($D$20=P!$K$9,$D$24, IF($U160<($E$20*$D$23),$D$26,$D$24)))) ->  | Z160: FALSE | AB160: 0 | AC160: 0
P161: FALSE | R161: No vendido | T161: 123 | U161: 12.3 | W161: 8.54074 | X161: =IF($U161>$F$51,"", IF($D$20=P!$K$10,$D$24+$E$20, IF($D$20=P!$K$9,$D$24, IF($U161<($E$20*$D$23),$D$26,$D$24)))) ->  | Z161: FALSE | AB161: 0 | AC161: 0
P162: FALSE | R162: No vendido | T162: 124 | U162: 12.4 | W162: 8.54074 | X162: =IF($U162>$F$51,"", IF($D$20=P!$K$10,$D$24+$E$20, IF($D$20=P!$K$9,$D$24, IF($U162<($E$20*$D$23),$D$26,$D$24)))) ->  | Z162: FALSE | AB162: 0 | AC162: 0
P163: FALSE | R163: No vendido | T163: 125 | U163: 12.5 | W163: 8.54074 | X163: =IF($U163>$F$51,"", IF($D$20=P!$K$10,$D$24+$E$20, IF($D$20=P!$K$9,$D$24, IF($U163<($E$20*$D$23),$D$26,$D$24)))) ->  | Z163: FALSE | AB163: 0 | AC163: 0
P164: FALSE | R164: No vendido | T164: 126 | U164: 12.6 | W164: 8.54074 | X164: =IF($U164>$F$51,"", IF($D$20=P!$K$10,$D$24+$E$20, IF($D$20=P!$K$9,$D$24, IF($U164<($E$20*$D$23),$D$26,$D$24)))) ->  | Z164: FALSE | AB164: 0 | AC164: 0
P165: FALSE | R165: No vendido | T165: 127 | U165: 12.7 | W165: 8.54074 | X165: =IF($U165>$F$51,"", IF($D$20=P!$K$10,$D$24+$E$20, IF($D$20=P!$K$9,$D$24, IF($U165<($E$20*$D$23),$D$26,$D$24)))) ->  | Z165: FALSE | AB165: 0 | AC165: 0
P166: FALSE | R166: No vendido | T166: 128 | U166: 12.8 | W166: =$D$24 -> 8.54074 | X166: =IF($U166>$F$51,"", IF($D$20=P!$K$10,$D$24+$E$20, IF($D$20=P!$K$9,$D$24, IF($U166<($E$20*$D$23),$D$26,$D$24)))) ->  | Z166: FALSE | AB166: 0 | AC166: 0
P167: FALSE | R167: No vendido | T167: 129 | U167: 12.9 | V167: =IFERROR(IF($F$51>0,INDEX($I$38:$I$49,S167,1),""),NA()) ->  | W167: 8.54074 | X167: =IF($U167>$F$51,"", IF($D$20=P!$K$10,$D$24+$E$20, IF($D$20=P!$K$9,$D$24, IF($U167<($E$20*$D$23),$D$26,$D$24)))) ->  | Z167: =IF($U167<=$D$9,"TRUE","FALSE") -> FALSE | AB167: =IFERROR(IF(AND($Q167="Demandado",$R167="Vendido"), IFERROR(($U167-$U166)*1000*$D$12,0),0),0) -> 0 | AC167: 0
P168: =IFERROR(IF(AND(Q168="Demandado",Q169<>"Demandado"),"TRUE","FALSE"),"") -> FALSE | Q168: =IFERROR(IF(AND(V168<=X168,V168<>0,V168<>"",$U168<$F$51), "Demandado", "No demandado"),"") ->  | R168: =IF($U168<=$D$9,"Vendido","No vendido") -> No vendido | T168: 130 | U168: 13 | W168: 8.54074 | X168: =IF($U168>$F$51,"", IF($D$20=P!$K$10,$D$24+$E$20, IF($D$20=P!$K$9,$D$24, IF($U168<($E$20*$D$23),$D$26,$D$24)))) ->  | Z168: FALSE | AB168: 0 | AC168: =IFERROR(IF(AND($Q168="Demandado",$R168="Vendido"), IFERROR(($U168-$U167)*1000*W168,0),0),0) -> 0
P169: FALSE | R169: No vendido | T169: 131 | U169: 13.1 | W169: 8.54074 | X169: =IF($U169>$F$51,"", IF($D$20=P!$K$10,$D$24+$E$20, IF($D$20=P!$K$9,$D$24, IF($U169<($E$20*$D$23),$D$26,$D$24)))) ->  | Z169: FALSE | AB169: 0 | AC169: 0
P170: FALSE | R170: No vendido | T170: 132 | U170: 13.2 | W170: 8.54074 | X170: =IF($U170>$F$51,"", IF($D$20=P!$K$10,$D$24+$E$20, IF($D$20=P!$K$9,$D$24, IF($U170<($E$20*$D$23),$D$26,$D$24)))) ->  | Z170: FALSE | AB170: 0 | AC170: 0
P171: FALSE | R171: No vendido | T171: 133 | U171: 13.3 | W171: 8.54074 | X171: =IF($U171>$F$51,"", IF($D$20=P!$K$10,$D$24+$E$20, IF($D$20=P!$K$9,$D$24, IF($U171<($E$20*$D$23),$D$26,$D$24)))) ->  | Z171: FALSE | AB171: 0 | AC171: 0
P172: FALSE | R172: No vendido | S172: =IF(T172>$F$51/$F$53,"", IFERROR(IF(T171=ROUND(INDEX($M$38:$M$49,S171,1),0),S171+1,S171),"")) ->  | T172: 134 | U172: 13.4 | W172: 8.54074 | X172: =IF($U172>$F$51,"", IF($D$20=P!$K$10,$D$24+$E$20, IF($D$20=P!$K$9,$D$24, IF($U172<($E$20*$D$23),$D$26,$D$24)))) ->  | Z172: FALSE | AB172: 0 | AC172: 0
P173: FALSE | R173: No vendido | T173: 135 | U173: 13.5 | W173: 8.54074 | X173: =IF($U173>$F$51,"", IF($D$20=P!$K$10,$D$24+$E$20, IF($D$20=P!$K$9,$D$24, IF($U173<($E$20*$D$23),$D$26,$D$24)))) ->  | Z173: FALSE | AB173: 0 | AC173: 0
P174: FALSE | R174: No vendido | T174: 136 | U174: 13.6 | W174: 8.54074 | X174: =IF($U174>$F$51,"", IF($D$20=P!$K$10,$D$24+$E$20, IF($D$20=P!$K$9,$D$24, IF($U174<($E$20*$D$23),$D$26,$D$24)))) ->  | Z174: FALSE | AB174: 0 | AC174: 0
P175: FALSE | R175: No vendido | T175: 137 | U175: 13.7 | W175: 8.54074 | X175: =IF($U175>$F$51,"", IF($D$20=P!$K$10,$D$24+$E$20, IF($D$20=P!$K$9,$D$24, IF($U175<($E$20*$D$23),$D$26,$D$24)))) ->  | Z175: FALSE | AB175: 0 | AC175: 0
P176: FALSE | R176: No vendido | T176: 138 | U176: 13.8 | W176: 8.54074 | X176: =IF($U176>$F$51,"", IF($D$20=P!$K$10,$D$24+$E$20, IF($D$20=P!$K$9,$D$24, IF($U176<($E$20*$D$23),$D$26,$D$24)))) ->  | Z176: FALSE | AB176: 0 | AC176: 0
P177: FALSE | R177: No vendido | T177: 139 | U177: 13.9 | W177: 8.54074 | X177: =IF($U177>$F$51,"", IF($D$20=P!$K$10,$D$24+$E$20, IF($D$20=P!$K$9,$D$24, IF($U177<($E$20*$D$23),$D$26,$D$24)))) ->  | Z177: FALSE | AB177: 0 | AC177: 0
P178: FALSE | R178: No vendido | T178: 140 | U178: 14 | W178: 8.54074 | X178: =IF($U178>$F$51,"", IF($D$20=P!$K$10,$D$24+$E$20, IF($D$20=P!$K$9,$D$24, IF($U178<($E$20*$D$23),$D$26,$D$24)))) ->  | Z178: FALSE | AB178: 0 | AC178: 0
P179: FALSE | R179: No vendido | T179: 141 | U179: 14.1 | W179: 8.54074 | X179: =IF($U179>$F$51,"", IF($D$20=P!$K$10,$D$24+$E$20, IF($D$20=P!$K$9,$D$24, IF($U179<($E$20*$D$23),$D$26,$D$24)))) ->  | Z179: FALSE | AB179: 0 | AC179: 0
P180: FALSE | R180: No vendido | T180: 142 | U180: 14.2 | W180: 8.54074 | X180: =IF($U180>$F$51,"", IF($D$20=P!$K$10,$D$24+$E$20, IF($D$20=P!$K$9,$D$24, IF($U180<($E$20*$D$23),$D$26,$D$24)))) ->  | Z180: FALSE | AB180: 0 | AC180: 0
P181: FALSE | R181: No vendido | T181: 143 | U181: 14.3 | W181: 8.54074 | X181: =IF($U181>$F$51,"", IF($D$20=P!$K$10,$D$24+$E$20, IF($D$20=P!$K$9,$D$24, IF($U181<($E$20*$D$23),$D$26,$D$24)))) ->  | Z181: FALSE | AB181: 0 | AC181: 0
P182: FALSE | R182: No vendido | T182: 144 | U182: 14.4 | W182: 8.54074 | X182: =IF($U182>$F$51,"", IF($D$20=P!$K$10,$D$24+$E$20, IF($D$20=P!$K$9,$D$24, IF($U182<($E$20*$D$23),$D$26,$D$24)))) ->  | Z182: FALSE | AB182: 0 | AC182: 0
P183: FALSE | R183: No vendido | T183: 145 | U183: 14.5 | W183: 8.54074 | X183: =IF($U183>$F$51,"", IF($D$20=P!$K$10,$D$24+$E$20, IF($D$20=P!$K$9,$D$24, IF($U183<($E$20*$D$23),$D$26,$D$24)))) ->  | Z183: FALSE | AB183: 0 | AC183: 0
P184: FALSE | R184: No vendido | T184: 146 | U184: 14.6 | W184: 8.54074 | X184: =IF($U184>$F$51,"", IF($D$20=P!$K$10,$D$24+$E$20, IF($D$20=P!$K$9,$D$24, IF($U184<($E$20*$D$23),$D$26,$D$24)))) ->  | Z184: FALSE | AB184: 0 | AC184: 0
P185: FALSE | R185: No vendido | T185: 147 | U185: 14.7 | W185: 8.54074 | X185: =IF($U185>$F$51,"", IF($D$20=P!$K$10,$D$24+$E$20, IF($D$20=P!$K$9,$D$24, IF($U185<($E$20*$D$23),$D$26,$D$24)))) ->  | Z185: FALSE | AB185: 0 | AC185: 0
P186: FALSE | R186: No vendido | T186: 148 | U186: 14.8 | W186: 8.54074 | X186: =IF($U186>$F$51,"", IF($D$20=P!$K$10,$D$24+$E$20, IF($D$20=P!$K$9,$D$24, IF($U186<($E$20*$D$23),$D$26,$D$24)))) ->  | Z186: FALSE | AB186: 0 | AC186: 0
P187: FALSE | R187: No vendido | T187: 149 | U187: 14.9 | W187: 8.54074 | X187: =IF($U187>$F$51,"", IF($D$20=P!$K$10,$D$24+$E$20, IF($D$20=P!$K$9,$D$24, IF($U187<($E$20*$D$23),$D$26,$D$24)))) ->  | Z187: FALSE | AB187: 0 | AC187: 0
P188: FALSE | R188: No vendido | T188: 150 | U188: 15 | W188: 8.54074 | X188: =IF($U188>$F$51,"", IF($D$20=P!$K$10,$D$24+$E$20, IF($D$20=P!$K$9,$D$24, IF($U188<($E$20*$D$23),$D$26,$D$24)))) ->  | Z188: FALSE | AB188: 0 | AC188: 0
P189: FALSE | R189: No vendido | T189: 151 | U189: 15.1 | W189: 8.54074 | X189: =IF($U189>$F$51,"", IF($D$20=P!$K$10,$D$24+$E$20, IF($D$20=P!$K$9,$D$24, IF($U189<($E$20*$D$23),$D$26,$D$24)))) ->  | Z189: FALSE | AB189: 0 | AC189: 0
P190: FALSE | R190: No vendido | T190: 152 | U190: 15.2 | W190: 8.54074 | X190: =IF($U190>$F$51,"", IF($D$20=P!$K$10,$D$24+$E$20, IF($D$20=P!$K$9,$D$24, IF($U190<($E$20*$D$23),$D$26,$D$24)))) ->  | Z190: FALSE | AB190: 0 | AC190: 0
P191: FALSE | R191: No vendido | T191: 153 | U191: 15.3 | W191: 8.54074 | X191: =IF($U191>$F$51,"", IF($D$20=P!$K$10,$D$24+$E$20, IF($D$20=P!$K$9,$D$24, IF($U191<($E$20*$D$23),$D$26,$D$24)))) ->  | Z191: FALSE | AB191: 0 | AC191: 0
P192: FALSE | R192: No vendido | T192: 154 | U192: 15.4 | W192: 8.54074 | X192: =IF($U192>$F$51,"", IF($D$20=P!$K$10,$D$24+$E$20, IF($D$20=P!$K$9,$D$24, IF($U192<($E$20*$D$23),$D$26,$D$24)))) ->  | Z192: FALSE | AB192: 0 | AC192: 0
P193: FALSE | R193: No vendido | T193: 155 | U193: 15.5 | W193: 8.54074 | X193: =IF($U193>$F$51,"", IF($D$20=P!$K$10,$D$24+$E$20, IF($D$20=P!$K$9,$D$24, IF($U193<($E$20*$D$23),$D$26,$D$24)))) ->  | Z193: FALSE | AB193: 0 | AC193: 0
P194: FALSE | R194: No vendido | T194: 156 | U194: 15.6 | W194: 8.54074 | X194: =IF($U194>$F$51,"", IF($D$20=P!$K$10,$D$24+$E$20, IF($D$20=P!$K$9,$D$24, IF($U194<($E$20*$D$23),$D$26,$D$24)))) ->  | Z194: FALSE | AB194: 0 | AC194: 0
P195: FALSE | R195: No vendido | T195: 157 | U195: 15.7 | W195: 8.54074 | X195: =IF($U195>$F$51,"", IF($D$20=P!$K$10,$D$24+$E$20, IF($D$20=P!$K$9,$D$24, IF($U195<($E$20*$D$23),$D$26,$D$24)))) ->  | Z195: FALSE | AB195: 0 | AC195: 0
P196: FALSE | R196: No vendido | T196: 158 | U196: 15.8 | W196: 8.54074 | X196: =IF($U196>$F$51,"", IF($D$20=P!$K$10,$D$24+$E$20, IF($D$20=P!$K$9,$D$24, IF($U196<($E$20*$D$23),$D$26,$D$24)))) ->  | Z196: FALSE | AB196: 0 | AC196: 0
P197: FALSE | R197: No vendido | T197: 159 | U197: 15.9 | W197: 8.54074 | X197: =IF($U197>$F$51,"", IF($D$20=P!$K$10,$D$24+$E$20, IF($D$20=P!$K$9,$D$24, IF($U197<($E$20*$D$23),$D$26,$D$24)))) ->  | Z197: FALSE | AB197: 0 | AC197: 0
P198: FALSE | R198: No vendido | T198: 160 | U198: 16 | W198: 8.54074 | X198: =IF($U198>$F$51,"", IF($D$20=P!$K$10,$D$24+$E$20, IF($D$20=P!$K$9,$D$24, IF($U198<($E$20*$D$23),$D$26,$D$24)))) ->  | Z198: FALSE | AB198: 0 | AC198: 0
P199: FALSE | R199: No vendido | T199: 161 | U199: 16.1 | W199: 8.54074 | X199: =IF($U199>$F$51,"", IF($D$20=P!$K$10,$D$24+$E$20, IF($D$20=P!$K$9,$D$24, IF($U199<($E$20*$D$23),$D$26,$D$24)))) ->  | Z199: FALSE | AB199: 0 | AC199: 0
P200: FALSE | R200: No vendido | T200: 162 | U200: 16.2 | W200: 8.54074 | X200: =IF($U200>$F$51,"", IF($D$20=P!$K$10,$D$24+$E$20, IF($D$20=P!$K$9,$D$24, IF($U200<($E$20*$D$23),$D$26,$D$24)))) ->  | Z200: FALSE | AB200: 0 | AC200: 0
P201: FALSE | R201: No vendido | T201: 163 | U201: 16.3 | W201: 8.54074 | X201: =IF($U201>$F$51,"", IF($D$20=P!$K$10,$D$24+$E$20, IF($D$20=P!$K$9,$D$24, IF($U201<($E$20*$D$23),$D$26,$D$24)))) ->  | Z201: FALSE | AB201: 0 | AC201: 0
P202: FALSE | R202: No vendido | T202: 164 | U202: 16.4 | W202: 8.54074 | X202: =IF($U202>$F$51,"", IF($D$20=P!$K$10,$D$24+$E$20, IF($D$20=P!$K$9,$D$24, IF($U202<($E$20*$D$23),$D$26,$D$24)))) ->  | Z202: FALSE | AB202: 0 | AC202: 0
P203: FALSE | R203: No vendido | T203: 165 | U203: 16.5 | W203: 8.54074 | X203: =IF($U203>$F$51,"", IF($D$20=P!$K$10,$D$24+$E$20, IF($D$20=P!$K$9,$D$24, IF($U203<($E$20*$D$23),$D$26,$D$24)))) ->  | Z203: FALSE | AB203: 0 | AC203: 0
P204: FALSE | R204: No vendido | T204: 166 | U204: 16.6 | W204: 8.54074 | X204: =IF($U204>$F$51,"", IF($D$20=P!$K$10,$D$24+$E$20, IF($D$20=P!$K$9,$D$24, IF($U204<($E$20*$D$23),$D$26,$D$24)))) ->  | Z204: FALSE | AB204: 0 | AC204: 0
P205: FALSE | R205: No vendido | T205: 167 | U205: 16.7 | W205: 8.54074 | X205: =IF($U205>$F$51,"", IF($D$20=P!$K$10,$D$24+$E$20, IF($D$20=P!$K$9,$D$24, IF($U205<($E$20*$D$23),$D$26,$D$24)))) ->  | Z205: FALSE | AB205: 0 | AC205: 0
P206: FALSE | R206: No vendido | T206: 168 | U206: 16.8 | W206: 8.54074 | X206: =IF($U206>$F$51,"", IF($D$20=P!$K$10,$D$24+$E$20, IF($D$20=P!$K$9,$D$24, IF($U206<($E$20*$D$23),$D$26,$D$24)))) ->  | Z206: FALSE | AB206: 0 | AC206: 0
P207: FALSE | R207: No vendido | T207: 169 | U207: 16.9 | W207: 8.54074 | X207: =IF($U207>$F$51,"", IF($D$20=P!$K$10,$D$24+$E$20, IF($D$20=P!$K$9,$D$24, IF($U207<($E$20*$D$23),$D$26,$D$24)))) ->  | Z207: FALSE | AB207: 0 | AC207: 0
P208: FALSE | R208: No vendido | T208: 170 | U208: 17 | W208: 8.54074 | X208: =IF($U208>$F$51,"", IF($D$20=P!$K$10,$D$24+$E$20, IF($D$20=P!$K$9,$D$24, IF($U208<($E$20*$D$23),$D$26,$D$24)))) ->  | Z208: FALSE | AB208: 0 | AC208: 0
P209: FALSE | R209: No vendido | T209: 171 | U209: 17.1 | W209: 8.54074 | X209: =IF($U209>$F$51,"", IF($D$20=P!$K$10,$D$24+$E$20, IF($D$20=P!$K$9,$D$24, IF($U209<($E$20*$D$23),$D$26,$D$24)))) ->  | Z209: FALSE | AB209: 0 | AC209: 0
P210: FALSE | R210: No vendido | T210: 172 | U210: 17.2 | W210: 8.54074 | X210: =IF($U210>$F$51,"", IF($D$20=P!$K$10,$D$24+$E$20, IF($D$20=P!$K$9,$D$24, IF($U210<($E$20*$D$23),$D$26,$D$24)))) ->  | Z210: FALSE | AB210: 0 | AC210: 0
P211: FALSE | R211: No vendido | T211: 173 | U211: 17.3 | W211: 8.54074 | X211: =IF($U211>$F$51,"", IF($D$20=P!$K$10,$D$24+$E$20, IF($D$20=P!$K$9,$D$24, IF($U211<($E$20*$D$23),$D$26,$D$24)))) ->  | Z211: FALSE | AB211: 0 | AC211: 0
P212: FALSE | R212: No vendido | T212: 174 | U212: 17.4 | W212: 8.54074 | X212: =IF($U212>$F$51,"", IF($D$20=P!$K$10,$D$24+$E$20, IF($D$20=P!$K$9,$D$24, IF($U212<($E$20*$D$23),$D$26,$D$24)))) ->  | Z212: FALSE | AB212: 0 | AC212: 0
P213: FALSE | R213: No vendido | T213: 175 | U213: 17.5 | W213: 8.54074 | X213: =IF($U213>$F$51,"", IF($D$20=P!$K$10,$D$24+$E$20, IF($D$20=P!$K$9,$D$24, IF($U213<($E$20*$D$23),$D$26,$D$24)))) ->  | Z213: FALSE | AB213: 0 | AC213: 0
P214: FALSE | R214: No vendido | T214: 176 | U214: 17.6 | W214: 8.54074 | X214: =IF($U214>$F$51,"", IF($D$20=P!$K$10,$D$24+$E$20, IF($D$20=P!$K$9,$D$24, IF($U214<($E$20*$D$23),$D$26,$D$24)))) ->  | Z214: FALSE | AB214: 0 | AC214: 0
P215: FALSE | R215: No vendido | T215: 177 | U215: 17.7 | W215: 8.54074 | X215: =IF($U215>$F$51,"", IF($D$20=P!$K$10,$D$24+$E$20, IF($D$20=P!$K$9,$D$24, IF($U215<($E$20*$D$23),$D$26,$D$24)))) ->  | Z215: FALSE | AB215: 0 | AC215: 0
... 273 more rows

Sheet BI
B3: Escenarios de costes y potencial de biodiesel
C6: Costos produccion ($MX/litro)
C8: $MX/litro | H8: 1 | I8: 2 | J8: 3 | K8: 4 | L8: 5 | M8: 6 | N8: 7 | O8: 8 | P8: 9 | Q8: 10 | R8: 11 | S8: 12 | T8: 13 | U8: 14 | V8: 15 | W8: 16 | X8: 17 | Y8: 18 | Z8: 19 | AA8: 20
C9: Tipo | D9: 2016 | H9: 2017 | I9: 2018 | J9: 2019 | K9: 2020 | L9: 2021 | M9: 2022 | N9: 2023 | O9: 2024 | P9: 2025 | Q9: 2026 | R9: 2027 | S9: 2028 | T9: 2029 | U9: 2030 | V9: 2031 | W9: 2032 | X9: 2033 | Y9: 2034 | Z9: 2035 | AA9: 2036
B10: 1 | C10: Aceites_usados | D10: 12.4 | H10: =IFERROR($D10*H$32,"-") -> 13.33688889 | I10: =IFERROR($D10*I$32,"-") -> 13.59480889 | J10: 14.55193458 | K10: 14.83090085 | L10: 15.80991466 | M10: 16.11164458 | N10: 17.11433259 | O10: 17.44068367 | P10: 18.46897768 | Q10: 18.82195901 | R10: 19.18905959 | S10: 19.5708442 | T10: 19.96790019 | U10: 20.38083842 | V10: 20.81029418 | W10: 21.25692817 | X10: 21.72142752 | Y10: 22.20450684 | Z10: 22.70690934 | AA10: 23.22940793
B11: 2 | C11: Cultivos_ClaseCosto1 | D11: 14.18 | H11: =IFERROR($D11*H$32,"-") -> 15.25137778 | I11: 15.54632178 | J11: 16.64084132 | K11: 16.95985275 | L11: 18.07940241 | M11: 18.42444517 | N11: 19.57106743 | O11: 19.94426568 | P11: 21.12016964 | Q11: 21.52382087 | R11: 21.94361815 | S11: 22.38020732 | T11: 22.83426006 | U11: 23.3064749 | V11: 23.79757834 | W11: 24.30832592 | X11: 24.8395034 | Y11: 25.39192798 | Z11: 25.96644955 | AA11: 26.56395197
B12: 3 | C12: Cultivos_ClaseCosto2 | D12: 20.05 | H12: 21.56488889 | I12: 21.98192889 | J12: 23.52953938 | K12: 23.98060984 | L12: 25.56361201 | M12: 26.05148983 | N12: 27.67277164 | O12: 28.20046029 | P12: 29.86314536 | Q12: 30.4338934 | R12: 31.02747136 | S12: 31.64479244 | T12: 32.28680636 | U12: 32.95450083 | V12: 33.64890309 | W12: 34.37108143 | X12: 35.12214691 | Y12: 35.90325501 | Z12: 36.71560743 | AA12: 37.56045395
B13: 4 | C13: Cultivos_ClaseCosto3 | D13: 25.75 | H13: 27.69555556 | I13: 28.23115556 | J13: 30.21873511 | K13: 30.79804007 | L13: 32.83107279 | M13: 33.45764903 | N13: 35.53984388 | O13: 36.21754875 | P13: 38.35291736 | Q13: 39.08592295 | R13: 39.84824875 | S13: 40.64106759 | T13: 41.46559918 | U13: 42.32311204 | V13: 43.21492541 | W13: 44.14241132 | X13: 45.10699666 | Y13: 46.11016541 | Z13: 47.15346092 | AA13: 48.23848824
B14: 5 | C14: Cultivos_ClaseCosto4 | D14: 30.53 | H14: 32.83671111 | I14: 33.47173511 | J14: 35.82827118 | K14: 36.51511314 | L14: 38.92553989 | M14: 39.66842815 | N14: 42.13714305 | O14: 42.940651 | P14: 45.47241037 | Q14: 46.34148456 | R14: 47.24532173 | S14: 48.18531237 | T14: 49.16290264 | U14: 50.17959653 | V14: 51.23695817 | W14: 52.33661427 | X14: 53.48025662 | Y14: 54.66964466 | Z14: 55.90660823 | AA14: 57.19305033
B15: 6 | C15: Cultivos_ClaseCosto5 | D15: 35.81 | H15: 38.51564444 | I15: 39.26049244 | J15: 42.02457881 | K15: 42.83020641 | L15: 45.65750355 | M15: 46.52887036 | N15: 49.42453628 | O15: 50.36700663 | P15: 53.33662022 | Q15: 54.35599614 | R15: 55.4161471 | S15: 56.5187041 | T15: 57.66536337 | U15: 58.85788902 | V15: 60.09811569 | W15: 61.38795143 | X15: 62.7293806 | Y15: 64.12446693 | Z15: 65.57535672 | AA15: 67.0842821
B16: 7 | D16: - | H16: - | I16: - | J16: - | K16: - | L16: - | M16: - | N16: - | O16: - | P16: - | Q16: - | R16: - | S16: - | T16: - | U16: - | V16: - | W16: - | X16: - | Y16: - | Z16: - | AA16: -
B17: 8 | C17: - | D17: - | H17: - | I17: - | J17: - | K17: - | L17: - | M17: - | N17: - | O17: - | P17: - | Q17: - | R17: - | S17: - | T17: - | U17: - | V17: - | W17: - | X17: - | Y17: - | Z17: - | AA17: -
B18: 9 | C18: - | D18: - | H18: - | I18: - | J18: - | K18: - | L18: - | M18: - | N18: - | O18: - | P18: - | Q18: - | R18: - | S18: - | T18: - | U18: - | V18: - | W18: - | X18: - | Y18: - | Z18: - | AA18: -
B19: 10 | C19: - | D19: - | H19: - | I19: - | J19: - | K19: - | L19: - | M19: - | N19: - | O19: - | P19: - | Q19: - | R19: - | S19: - | T19: - | U19: - | V19: - | W19: - | X19: - | Y19: - | Z19: - | AA19: -
B20: 11 | C20: - | D20: - | H20: - | I20: - | J20: - | K20: - | L20: - | M20: - | N20: - | O20: - | P20: - | Q20: - | R20: - | S20: - | T20: - | U20: - | V20: - | W20: - | X20: - | Y20: - | Z20: - | AA20: -
B21: 12 | C21: Import_Ref_Palma | D21: 15.65 | H21: 16.83244444 | I21: 17.15796444 | J21: 18.36594969 | K21: 18.71803212 | L21: 19.95364229 | M21: 20.33445465 | N21: 21.59994395 | O21: 22.0118306 | P21: 23.30963715 | Q21: 23.75513375 | R21: 24.21845021 | S21: 24.70029933 | T21: 25.20142242 | U21: 25.72259042 | V21: 26.26460515 | W21: 26.82830047 | X21: 27.4145436 | Y21: 28.02423646 | Z21: 28.65831702 | AA21: 29.31776082
F24: Factores actualización costes futuros
H26: 1 | I26: 2 | J26: 3 | K26: 4 | L26: 5 | M26: 6 | N26: 7 | O26: 8 | P26: 9 | Q26: 10 | R26: 11 | S26: 12 | T26: 13 | U26: 14 | V26: 15 | W26: 16 | X26: 17 | Y26: 18 | Z26: 19 | AA26: 20
F27: Peso factor | H27: 2017 | I27: 2018 | J27: 2019 | K27: 2020 | L27: 2021 | M27: 2022 | N27: 2023 | O27: 2024 | P27: 2025 | Q27: 2026 | R27: 2027 | S27: 2028 | T27: 2029 | U27: 2030 | V27: 2031 | W27: 2032 | X27: 2033 | Y27: 2034 | Z27: 2035 | AA27: 2036
F28: 0.5 | G28: Indice inflación | H28: =INDEX(Inflacion,MATCH($G$28,Inflacion_CU,0),MATCH(H$27,Inflacion_FU,0)) -> 1.04 | I28: 1.0816 | J28: 1.124864 | K28: 1.16985856 | L28: 1.216652902 | M28: 1.265319018 | N28: 1.315931779 | O28: 1.36856905 | P28: 1.423311812 | Q28: 1.480244285 | R28: 1.539454056 | S28: 1.601032219 | T28: 1.665073507 | U28: 1.731676448 | V28: 1.800943506 | W28: 1.872981246 | X28: 1.947900496 | Y28: 2.025816515 | Z28: 2.106849176 | AA28: 2.191123143
F29: 0.5 | G29: Precio internacional crudo | H29: =INDEX(Precios_Crudo,MATCH($H$30,Precios_Crudo_CU,0),MATCH(H$27,Precios_Crudo_FU,0))/INDEX(Precios_Crudo,MATCH($H$30,Precios_Crudo_CU,0),MATCH($D$9,Precios_Crudo_FU,0)) -> 1.111111111 | I29: 1.111111111 | J29: 1.222222222 | K29: 1.222222222 | L29: 1.333333333 | M29: 1.333333333 | N29: 1.444444444 | O29: 1.444444444 | P29: 1.555555556 | Q29: 1.555555556 | R29: 1.555555556 | S29: 1.555555556 | T29: 1.555555556 | U29: 1.555555556 | V29: 1.555555556 | W29: 1.555555556 | X29: 1.555555556 | Y29: 1.555555556 | Z29: 1.555555556 | AA29: 1.555555556
G30: Escenario costo diesel | H30: =INDEX(Escenarios_General,MATCH('R1'!$C$10,Escenarios_General_CU,0),MATCH($G$30,Escenarios_General_FU,0)) -> Moderado
G32: Factor actualización coste | H32: =(H$28*$F$28)+(H$29*$F$29) -> 1.075555556 | I32: 1.096355556 | J32: 1.173543111 | K32: 1.196040391 | L32: 1.274993118 | M32: 1.299326176 | N32: 1.380188112 | O32: 1.406506747 | P32: 1.489433684 | Q32: 1.51789992 | R32: 1.547504806 | S32: 1.578293887 | T32: 1.610314531 | U32: 1.643616002 | V32: 1.678249531 | W32: 1.714268401 | X32: 1.751728026 | Y32: 1.790686035 | Z32: 1.831202366 | AA32: 1.873339349
C36: Potencial producción (millones m3 biodiesel)
C38: millones m3 biodiesel | H38: 1 | I38: 2 | J38: 3 | K38: 4 | L38: 5 | M38: 6 | N38: 7 | O38: 8 | P38: 9 | Q38: 10 | R38: 11 | S38: 12 | T38: 13 | U38: 14 | V38: 15 | W38: 16 | X38: 17 | Y38: 18 | Z38: 19 | AA38: 20
C39: Tipo | D39: 2016 | H39: 2017 | I39: 2018 | J39: 2019 | K39: 2020 | L39: 2021 | M39: 2022 | N39: 2023 | O39: 2024 | P39: 2025 | Q39: 2026 | R39: 2027 | S39: 2028 | T39: 2029 | U39: 2030 | V39: 2031 | W39: 2032 | X39: 2033 | Y39: 2034 | Z39: 2035 | AA39: 2036
B40: 1 | C40: =IF(C10<>"",C10,"") -> Aceites_usados | D40: 0.24 | H40: =$D40 -> 0.24 | I40: =$D40 -> 0.24 | J40: 0.24 | K40: 0.24 | L40: 0.24 | M40: 0.24 | N40: 0.24 | O40: 0.24 | P40: 0.24 | Q40: 0.24 | R40: 0.24 | S40: 0.24 | T40: 0.24 | U40: 0.24 | V40: 0.24 | W40: 0.24 | X40: 0.24 | Y40: 0.24 | Z40: 0.24 | AA40: 0.24
B41: 2 | C41: Cultivos_ClaseCosto1 | D41: 3.249 | H41: =$D41 -> 3.249 | I41: 3.249 | J41: 3.249 | K41: 3.249 | L41: 3.249 | M41: 3.249 | N41: 3.249 | O41: 3.249 | P41: 3.249 | Q41: 3.249 | R41: 3.249 | S41: 3.249 | T41: 3.249 | U41: 3.249 | V41: 3.249 | W41: 3.249 | X41: 3.249 | Y41: 3.249 | Z41: 3.249 | AA41: 3.249
B42: 3 | C42: Cultivos_ClaseCosto2 | D42: 1.135 | H42: 1.135 | I42: 1.135 | J42: 1.135 | K42: 1.135 | L42: 1.135 | M42: 1.135 | N42: 1.135 | O42: 1.135 | P42: 1.135 | Q42: 1.135 | R42: 1.135 | S42: 1.135 | T42: 1.135 | U42: 1.135 | V42: 1.135 | W42: 1.135 | X42: 1.135 | Y42: 1.135 | Z42: 1.135 | AA42: 1.135
B43: 4 | C43: Cultivos_ClaseCosto3 | D43: 0.509 | H43: 0.509 | I43: 0.509 | J43: 0.509 | K43: 0.509 | L43: 0.509 | M43: 0.509 | N43: 0.509 | O43: 0.509 | P43: 0.509 | Q43: 0.509 | R43: 0.509 | S43: 0.509 | T43: 0.509 | U43: 0.509 | V43: 0.509 | W43: 0.509 | X43: 0.509 | Y43: 0.509 | Z43: 0.509 | AA43: 0.509
B44: 5 | C44: Cultivos_ClaseCosto4 | D44: 0.214 | H44: 0.214 | I44: 0.214 | J44: 0.214 | K44: 0.214 | L44: 0.214 | M44: 0.214 | N44: 0.214 | O44: 0.214 | P44: 0.214 | Q44: 0.214 | R44: 0.214 | S44: 0.214 | T44: 0.214 | U44: 0.214 | V44: 0.214 | W44: 0.214 | X44: 0.214 | Y44: 0.214 | Z44: 0.214 | AA44: 0.214
B45: 6 | C45: Cultivos_ClaseCosto5 | D45: 0.188 | H45: 0.188 | I45: 0.188 | J45: 0.188 | K45: 0.188 | L45: 0.188 | M45: 0.188 | N45: 0.188 | O45: 0.188 | P45: 0.188 | Q45: 0.188 | R45: 0.188 | S45: 0.188 | T45: 0.188 | U45: 0.188 | V45: 0.188 | W45: 0.188 | X45: 0.188 | Y45: 0.188 | Z45: 0.188 | AA45: 0.188
B46: 7 | D46: - | H46: - | I46: - | J46: - | K46: - | L46: - | M46: - | N46: - | O46: - | P46: - | Q46: - | R46: - | S46: - | T46: - | U46: - | V46: - | W46: - | X46: - | Y46: - | Z46: - | AA46: -
B47: 8 | C47: - | D47: - | H47: - | I47: - | J47: - | K47: - | L47: - | M47: - | N47: - | O47: - | P47: - | Q47: - | R47: - | S47: - | T47: - | U47: - | V47: - | W47: - | X47: - | Y47: - | Z47: - | AA47: -
B48: 9 | C48: - | D48: - | H48: - | I48: - | J48: - | K48: - | L48: - | M48: - | N48: - | O48: - | P48: - | Q48: - | R48: - | S48: - | T48: - | U48: - | V48: - | W48: - | X48: - | Y48: - | Z48: - | AA48: -
B49: 10 | C49: - | D49: - | H49: - | I49: - | J49: - | K49: - | L49: - | M49: - | N49: - | O49: - | P49: - | Q49: - | R49: - | S49: - | T49: - | U49: - | V49: - | W49: - | X49: - | Y49: - | Z49: - | AA49: -
B50: 11 | C50: - | D50: - | H50: - | I50: - | J50: - | K50: - | L50: - | M50: - | N50: - | O50: - | P50: - | Q50: - | R50: - | S50: - | T50: - | U50: - | V50: - | W50: - | X50: - | Y50: - | Z50: - | AA50: -
B51: 12 | C51: Import_Ref_Palma | D51: 4 | H51: 4 | I51: 4 | J51: 4 | K51: 4 | L51: 4 | M51: 4 | N51: 4 | O51: 4 | P51: 4 | Q51: 4 | R51: 4 | S51: 4 | T51: 4 | U51: 4 | V51: 4 | W51: 4 | X51: 4 | Y51: 4 | Z51: 4 | AA51: 4

Sheet BI_C (hidden)
B3: Desglose de costes de diferentes tipos de biodiesel
C6: Coste Aceite Crudo
D9: Costes Agrícolas $MN/litro aceite equivalente | X9: Precios aceites crudos importados
M11: Cultivos_ClaseCosto1 | N11: Cultivos_ClaseCosto2 | O11: Cultivos_ClaseCosto3 | P11: Cultivos_ClaseCosto4 | Q11: Cultivos_ClaseCosto5 | S11: Import_Ref_Palma | Y11: PALMA_importado | Z11: COCO_importado | AA11: SOJA_importado | AB11: GIRASOL_importado
M12: 6.295 | N12: 12.171 | O12: 17.866 | P12: 22.643 | Q12: 27.928 | S12: - | Y12: Average of last 6 months from: http://www.indexmundi.com | Z12: Average of last 6 months from: http://www.indexmundi.com | AA12: Average of last 6 months from: http://www.indexmundi.com | AB12: Average of last 6 months from: http://www.indexmundi.com
X13: Precio mercado internacional (USD/t) | Y13: 601.0216667 | Z13: 1300.964286 | AA13: 698.9033333 | AB13: 1027.405
D14: Transporte a planta | X14: Precio aceite crudo en USD/litro | Y14: =IFERROR(Y13*0.9/1000,"-") -> 0.5409195 | Z14: =IFERROR(Z13*0.9/1000,"-") -> 1.170867857 | AA14: 0.629013 | AB14: 0.9246645
X15: Coste aceite crudo en $MX/litro | Y15: =IFERROR(Y14*MA!$E$9,"-") -> 9.46609125 | Z15: =IFERROR(Z14*MA!$E$9,"-") -> 20.4901875 | AA15: =IFERROR(AA14*MA!$E$9,"-") -> 11.0077275 | AB15: =IFERROR(AB14*MA!$E$9,"-") -> 16.18162875
E17: PALMA | F17: COCO | G17: SOJA | H17: GIRASOL | I17: JATROPHA | J17: HIGUERILLA | M17: CAT 1 | N17: CAT 2 | O17: CAT 3 | P17: CAT 4 | Q17: CAT 5 | S17: Import_Ref_Palma
D18: Coste transporte unitario ($MN/t * km) | E18: 1.7 | F18: 1.7 | G18: 1.7 | H18: 1.7 | I18: 1.7 | J18: 1.7
D19: Distancia media a planta | E19: - | F19: 200 | G19: 150 | H19: 150 | I19: 200 | J19: 100
D20: Transporte a planta ($MN/t materia prima) | E20: - | F20: =F19*F18 -> 340 | G20: =G19*G18 -> 255 | H20: 255 | I20: 340 | J20: 170
D21: Contenido aceite (m3 aceite /t materia prima) | E21: 0.261 | F21: 0.19 | G21: 0.196 | H21: 0.478 | I21: 0.38 | J21: 0.38
D23: Transporte a planta ($MX/litro aceite) | F23: =F20/(F21*1000) -> 1.789473684 | G23: =G20/(G21*1000) -> 1.301020408 | H23: 0.5334728033 | I23: 0.8947368421 | J23: 0.4473684211 | K23: =AVERAGE(E23:J23) -> 0.9932144318 | M23: =$K$23 -> 0.9932144318 | N23: 0.9932144318 | O23: 0.9932144318 | P23: 0.9932144318 | Q23: 0.9932144318 | S23: =$K$23 -> 0.9932144318
D26: Extracción aceite
E28: PALMA | F28: COCO | G28: SOJA | H28: GIRASOL | I28: JATROPHA | J28: HIGUERILLA | M28: CAT 1 | N28: CAT 2 | O28: CAT 3 | P28: CAT 4 | Q28: CAT 5 | S28: Import_Ref_Palma
D29: Extracción aceite (USD/t materia prima) | E29: 26 | F29: 30 | G29: 20 | H29: 29 | I29: 32 | J29: 30
D30: Contenido aceite (m3 aceite/t materia prima) | E30: 0.261 | F30: 0.19 | G30: 0.196 | H30: 0.478 | I30: 0.38 | J30: 0.38
D31: Extracción aceite (USD/litro) | E31: =E29/(E30*1000) -> 0.09961685824 | F31: =F29/(F30*1000) -> 0.1578947368 | G31: 0.1020408163 | H31: 0.06066945607 | I31: 0.08421052632 | J31: 0.07894736842
D32: Tipo de cambio ($MN/dolar) | E32: 17.5 | F32: 17.5 | G32: 17.5 | H32: 17.5 | I32: 17.5 | J32: 17.5
D34: Extracción aceite ($MN/ litro aceite) | E34: =E31*E32 -> 1.743295019 | F34: =F31*F32 -> 2.763157895 | G34: 1.785714286 | H34: 1.061715481 | I34: 1.473684211 | J34: 1.381578947 | K34: =AVERAGE(E34:J34) -> 1.701524306 | M34: =$K$34 -> 1.701524306 | N34: 1.701524306 | O34: 1.701524306 | P34: 1.701524306 | Q34: 1.701524306 | S34: -
D37: COSTE TOTAL ACEITE CRUDO EN PLANTA
E39: PALMA | F39: COCO | G39: SOJA | H39: GIRASOL | I39: JATROPHA | J39: HIGUERILLA | M39: CAT 1 | N39: CAT 2 | O39: CAT 3 | P39: CAT 4 | Q39: CAT 5 | S39: Import_Ref_Palma
E40: =E34+E23+E12 -> 1.743295019 | F40: =F34+F23+F12 -> 4.552631579 | G40: 3.086734694 | H40: 1.595188285 | I40: 2.368421053 | J40: 1.828947368 | M40: =M12+M23+M34 -> 8.989738738 | N40: =N12+N23+N34 -> 14.86573874 | O40: 20.56073874 | P40: 25.33773874 | Q40: 30.62273874 | S40: =Y15+S23 -> 10.45930568
C42: Conversión a biodiesel y transporte a terminal de distribución
D45: Conversión aceite crudo a biodiesel
E47: PALMA | F47: COCO | G47: SOJA | H47: GIRASOL | I47: JATROPHA | J47: HIGUERILLA | M47: CAT 1 | N47: CAT 2 | O47: CAT 3 | P47: CAT 4 | Q47: CAT 5 | S47: Import_Ref_Palma
D48: Conversión a biodiesel ($MN/litro biodiesel) | E48: 5 | F48: 5 | G48: 5 | H48: 5 | I48: 5 | J48: 5 | K48: =AVERAGE(E48:J48) -> 5 | M48: 5 | N48: 5 | O48: 5 | P48: 5 | Q48: 5 | S48: 5
D50: Trasporte a terminal de distribución
E52: PALMA | F52: COCO | G52: SOJA | H52: GIRASOL | I52: JATROPHA | J52: HIGUERILLA | M52: CAT 1 | N52: CAT 2 | O52: CAT 3 | P52: CAT 4 | Q52: CAT 5 | S52: Import_Ref_Palma
D53: Distancia media a planta (km) | E53: 100 | F53: 100 | G53: 100 | H53: 100 | I53: 100 | J53: 100
D54: Coste unitario transporte ($MN/ t*km) | E54: 1.7 | F54: 1.7 | G54: 1.7 | H54: 1.7 | I54: 1.7 | J54: 1.7
D55: Densidad biodiesel (t/m3) | E55: 0.9 | F55: 0.9 | G55: 0.9 | H55: 0.9 | I55: 0.9 | J55: 0.9
D57: Transporte a terminal de distribución ($MN/litro biodiesel) | E57: =(E54*E53)/(E55*1000) -> 0.1888888889 | F57: =(F54*F53)/(F55*1000) -> 0.1888888889 | G57: 0.1888888889 | H57: 0.1888888889 | I57: 0.1888888889 | J57: 0.1888888889 | K57: =AVERAGE(E57:J57) -> 0.1888888889 | M57: =$K$57 -> 0.1888888889 | N57: 0.1888888889 | O57: 0.1888888889 | P57: 0.1888888889 | Q57: 0.1888888889 | S57: =$K$57 -> 0.1888888889
C59: COSTE TOTAL BIODIESEL
M61: CAT 1 | N61: CAT 2 | O61: CAT 3 | P61: CAT 4 | Q61: CAT 5 | S61: Import_Ref_Palma
M62: =M40+M48+M57 -> 14.17862763 | N62: =N40+N48+N57 -> 20.05462763 | O62: 25.74962763 | P62: 30.52662763 | Q62: 35.81162763 | S62: =S40+S48+S57 -> 15.64819457

Sheet IN
B3: Evolución de la capacidad de producción de biodiesel
C6: Capacidad mínima plantas conversión | D6: 0.1 | E6: millones m3
C7: Maximo incremento capacidad anual | D7: 0.2 | E7: millones m3
C10: Demanda biodiesel
E12: 1 | F12: 2 | G12: 3 | H12: 4 | I12: 5 | J12: 6 | K12: 7 | L12: 8 | M12: 9 | N12: 10 | O12: 11 | P12: 12 | Q12: 13 | R12: 14 | S12: 15 | T12: 16 | U12: 17 | V12: 18 | W12: 19 | X12: 20
D13: 2016 | E13: 2017 | F13: 2018 | G13: 2019 | H13: 2020 | I13: 2021 | J13: 2022 | K13: 2023 | L13: 2024 | M13: 2025 | N13: 2026 | O13: 2027 | P13: 2028 | Q13: 2029 | R13: 2030 | S13: 2031 | T13: 2032 | U13: 2033 | V13: 2034 | W13: 2035 | X13: 2036
C14: Demanda biodiesel | D14: 0 | E14: =INDEX(ResultadosCasacion,MATCH(E$13,ResultadosCasacion_CU,0),MATCH($C$14,ResultadosCasacion_FU,0)) -> 0 | F14: 0.1 | G14: 0.1 | H14: 0.2 | I14: 0.2 | J14: 0.3 | K14: 0.3 | L14: 0.4 | M14: 0.5 | N14: 0.5 | O14: 0.6 | P14: 0.7 | Q14: 0.8 | R14: 0.9 | S14: 1 | T14: 1.1 | U14: 1.1 | V14: 1.1 | W14: 1.1 | X14: 1.2
C17: Cálculo capacidad producción
C19: millones m3 | E19: 1 | F19: 2 | G19: 3 | H19: 4 | I19: 5 | J19: 6 | K19: 7 | L19: 8 | M19: 9 | N19: 10 | O19: 11 | P19: 12 | Q19: 13 | R19: 14 | S19: 15 | T19: 16 | U19: 17 | V19: 18 | W19: 19 | X19: 20
D20: 2016 | E20: 2017 | F20: 2018 | G20: 2019 | H20: 2020 | I20: 2021 | J20: 2022 | K20: 2023 | L20: 2024 | M20: 2025 | N20: 2026 | O20: 2027 | P20: 2028 | Q20: 2029 | R20: 2030 | S20: 2031 | T20: 2032 | U20: 2033 | V20: 2034 | W20: 2035 | X20: 2036
C21: Capacidad conversión acumulada | D21: 0 | E21: =D21+D22 -> 0 | F21: =E21+E22 -> 0.2 | G21: =F21+F22 -> 0.4 | H21: 0.4 | I21: 0.4 | J21: 0.4 | K21: 0.4 | L21: 0.4 | M21: 0.6 | N21: 0.8 | O21: 0.8 | P21: 0.8 | Q21: 0.8 | R21: 1 | S21: 1.2 | T21: 1.4 | U21: 1.4 | V21: 1.4 | W21: 1.4 | X21: 1.4
C22: Capacidad instalada anual | D22: 0 | E22: =IF(D21<F14,IF((F14-D21)>=$D$7,$D$7,(F14-D21)+$D$6),0) -> 0.2 | F22: =IF(E21<G14,IF((G14-E21)>=$D$7,$D$7,(G14-E21)+$D$6),0) -> 0.2 | G22: 0 | H22: 0 | I22: 0 | J22: 0 | K22: 0 | L22: 0.2 | M22: 0.2 | N22: 0 | O22: 0 | P22: 0 | Q22: 0.2 | R22: 0.2 | S22: 0.2 | T22: 0 | U22: 0 | V22: 0 | W22: 0 | X22: 0
E23: =E21>=E14 -> TRUE | F23: TRUE | G23: TRUE | H23: TRUE | I23: TRUE | J23: TRUE | K23: TRUE | L23: TRUE | M23: TRUE | N23: TRUE | O23: TRUE | P23: TRUE | Q23: TRUE | R23: TRUE | S23: TRUE | T23: TRUE | U23: TRUE | V23: TRUE | W23: TRUE | X23: TRUE
C25: Inversión en plantas conversión biodiesel
D26: https://www.iisd.org/gsi/sites/default/files/biofuels_subsidies_eu_review.pdf
C27: Inversión unitaria | D27: 250 | E27: millones USD/ millón m3 biodiesel de capacidad instalada
E29: 1 | F29: 2 | G29: 3 | H29: 4 | I29: 5 | J29: 6 | K29: 7 | L29: 8 | M29: 9 | N29: 10 | O29: 11 | P29: 12 | Q29: 13 | R29: 14 | S29: 15 | T29: 16 | U29: 17 | V29: 18 | W29: 19 | X29: 20
D30: 2016 | E30: 2017 | F30: 2018 | G30: 2019 | H30: 2020 | I30: 2021 | J30: 2022 | K30: 2023 | L30: 2024 | M30: 2025 | N30: 2026 | O30: 2027 | P30: 2028 | Q30: 2029 | R30: 2030 | S30: 2031 | T30: 2032 | U30: 2033 | V30: 2034 | W30: 2035 | X30: 2036
C31: Inversión necesaria estimada en cada año (millones USD) | D31: =D22*$D$27 -> 0 | E31: =E22*$D$27 -> 50 | F31: 50 | G31: 0 | H31: 0 | I31: 0 | J31: 0 | K31: 0 | L31: 50 | M31: 50 | N31: 0 | O31: 0 | P31: 0 | Q31: 50 | R31: 50 | S31: 50 | T31: 0 | U31: 0 | V31: 0 | W31: 0 | X31: 0
C32: Inversión acumulada (millones USD) | D32: =D31 -> 0 | E32: =E31+D32 -> 50 | F32: =F31+E32 -> 100 | G32: 100 | H32: 100 | I32: 100 | J32: 100 | K32: 100 | L32: 150 | M32: 200 | N32: 200 | O32: 200 | P32: 200 | Q32: 250 | R32: 300 | S32: 350 | T32: 350 | U32: 350 | V32: 350 | W32: 350 | X32: 350
C35: Inversión necesaria estimada (millones $MN) | D35: =D31*INDEX(TipoCambio,1,MATCH(D30,TipoCambio_FU,0)) -> 0 | E35: 910 | F35: 946.4 | G35: 0 | H35: 0 | I35: 0 | J35: 0 | K35: 0 | L35: 1197.497919 | M35: 1245.397836 | N35: 0 | O35: 0 | P35: 0 | Q35: 1456.939319 | R35: 1515.216892 | S35: 1575.825567 | T35: 0 | U35: 0 | V35: 0 | W35: 0 | X35: 0
C36: Inversión acumulada (millones $MN) | D36: =D35 -> 0 | E36: =E35+D36 -> 910 | F36: =F35+E36 -> 1856.4 | G36: =G35+F36 -> 1856.4 | H36: =H35+G36 -> 1856.4 | I36: =I35+H36 -> 1856.4 | J36: =J35+I36 -> 1856.4 | K36: =K35+J36 -> 1856.4 | L36: =L35+K36 -> 3053.897919 | M36: =M35+L36 -> 4299.295755 | N36: =N35+M36 -> 4299.295755 | O36: =O35+N36 -> 4299.295755 | P36: =P35+O36 -> 4299.295755 | Q36: =Q35+P36 -> 5756.235074 | R36: =R35+Q36 -> 7271.451966 | S36: =S35+R36 -> 8847.277533 | T36: =T35+S36 -> 8847.277533 | U36: =U35+T36 -> 8847.277533 | V36: =V35+U36 -> 8847.277533 | W36: =W35+V36 -> 8847.277533 | X36: =X35+W36 -> 8847.277533

Sheet Em
B3: Estimación coeficientes reducción emisiones
E5: Max | F5: Min
D6: gCO2e/MJ | E6: =E16*$E$11 -> 52.5426 | F6: =F16*$E$11 -> 36.77982
D7: tCO2e/M3 | E7: =E6*PoderCalorifico_Biodiesel/1000 -> 1.989262836 | F7: =F6*PoderCalorifico_Biodiesel/1000 -> 1.392483985
C9: Comparador fósil
D11: Factor de emisión del gasoil | E11: 83.8 | F11: gCO2e/MJ | G11: Fuente: Directiva Europea de Energías Renovables 2009/28/EC
C13: % Reducción de emisiones por tipo de biodiesel
E15: Max (Media ponderada reducción emisiones) | F15: Min (Media ponderada reducción emisiones)
E16: =SUMPRODUCT(E20:E22,$H$20:$H$22) -> 0.627 | F16: =SUMPRODUCT(F20:F22,$H$20:$H$22) -> 0.4389
E18: Fuente: Directiva Europea de Energías Renovables 2009/28/EC
E19: Max (Valor típico en la directiva) | F19: Min (valor por defecto en la directiva) | H19: Supuesto % participación en el biodiesel introducido en Mexico
D20: Aceites usados | E20: 0.88 | F20: 0.83 | H20: 0.33
D21: Palma | E21: 0.62 | F21: 0.19 | H21: 0.33
D22: Soja | E22: 0.4 | F22: 0.31 | H22: 0.33
C25: Reducciones estándar. Fuente: Directiva Europea de Energías Renovables 2009/28/EC

Sheet DI
B2: Escenarios de demanda y precios del combustible diésel
C5: Escenario precio internacional del crudo (USD/barril)
I7: 1 | J7: 2 | K7: 3 | L7: 4 | M7: 5 | N7: 6 | O7: 7 | P7: 8 | Q7: 9 | R7: 10 | S7: 11 | T7: 12 | U7: 13 | V7: 14 | W7: 15 | X7: 16 | Y7: 17 | Z7: 18 | AA7: 19 | AB7: 20
H8: 2016 | I8: 2017 | J8: 2018 | K8: 2019 | L8: 2020 | M8: 2021 | N8: 2022 | O8: 2023 | P8: 2024 | Q8: 2025 | R8: 2026 | S8: 2027 | T8: 2028 | U8: 2029 | V8: 2030 | W8: 2031 | X8: 2032 | Y8: 2033 | Z8: 2034 | AA8: 2035 | AB8: 2036
G9: Barato | H9: 45 | I9: 44 | J9: 44 | K9: 43 | L9: 43 | M9: 42 | N9: 42 | O9: 41 | P9: 41 | Q9: 40 | R9: 40 | S9: 40 | T9: 40 | U9: 40 | V9: 40 | W9: 40 | X9: 40 | Y9: 40 | Z9: 40 | AA9: 40 | AB9: 40
G10: Moderado | H10: 45 | I10: 50 | J10: 50 | K10: 55 | L10: 55 | M10: 60 | N10: 60 | O10: 65 | P10: 65 | Q10: 70 | R10: 70 | S10: 70 | T10: 70 | U10: 70 | V10: 70 | W10: 70 | X10: 70 | Y10: 70 | Z10: 70 | AA10: 70 | AB10: 70
G11: Caro | H11: 45 | I11: 50 | J11: 55 | K11: 60 | L11: 70 | M11: 75 | N11: 80 | O11: 90 | P11: 95 | Q11: 100 | R11: 100 | S11: 100 | T11: 100 | U11: 100 | V11: 100 | W11: 100 | X11: 100 | Y11: 100 | Z11: 100 | AA11: 100 | AB11: 100
C13: Precio SPOT del diesel en Houston (USD/litro)
I15: 1 | J15: 2 | K15: 3 | L15: 4 | M15: 5 | N15: 6 | O15: 7 | P15: 8 | Q15: 9 | R15: 10 | S15: 11 | T15: 12 | U15: 13 | V15: 14 | W15: 15 | X15: 16 | Y15: 17 | Z15: 18 | AA15: 19 | AB15: 20
H16: 2016 | I16: 2017 | J16: 2018 | K16: 2019 | L16: 2020 | M16: 2021 | N16: 2022 | O16: 2023 | P16: 2024 | Q16: 2025 | R16: 2026 | S16: 2027 | T16: 2028 | U16: 2029 | V16: 2030 | W16: 2031 | X16: 2032 | Y16: 2033 | Z16: 2034 | AA16: 2035 | AB16: 2036
G17: Barato | H17: =(H9*0.0076)+0.0207 -> 0.3627 | I17: =(I9*0.0076)+0.0207 -> 0.3551 | J17: 0.3551 | K17: 0.3475 | L17: 0.3475 | M17: 0.3399 | N17: 0.3399 | O17: 0.3323 | P17: 0.3323 | Q17: 0.3247 | R17: 0.3247 | S17: 0.3247 | T17: 0.3247 | U17: 0.3247 | V17: 0.3247 | W17: 0.3247 | X17: 0.3247 | Y17: 0.3247 | Z17: 0.3247 | AA17: 0.3247 | AB17: 0.3247
G18: Moderado | H18: =(H10*0.0076)+0.0207 -> 0.3627 | I18: 0.4007 | J18: 0.4007 | K18: 0.4387 | L18: 0.4387 | M18: 0.4767 | N18: 0.4767 | O18: 0.5147 | P18: 0.5147 | Q18: 0.5527 | R18: 0.5527 | S18: 0.5527 | T18: 0.5527 | U18: 0.5527 | V18: 0.5527 | W18: 0.5527 | X18: 0.5527 | Y18: 0.5527 | Z18: 0.5527 | AA18: 0.5527 | AB18: 0.5527
G19: Caro | H19: 0.3627 | I19: 0.4007 | J19: 0.4387 | K19: 0.4767 | L19: 0.5527 | M19: 0.5907 | N19: 0.6287 | O19: 0.7047 | P19: 0.7427 | Q19: 0.7807 | R19: 0.7807 | S19: 0.7807 | T19: 0.7807 | U19: 0.7807 | V19: 0.7807 | W19: 0.7807 | X19: 0.7807 | Y19: 0.7807 | Z19: 0.7807 | AA19: 0.7807 | AB19: 0.7807
C21: Tipo de cambio ($MN/USD)
I23: 1 | J23: 2 | K23: 3 | L23: 4 | M23: 5 | N23: 6 | O23: 7 | P23: 8 | Q23: 9 | R23: 10 | S23: 11 | T23: 12 | U23: 13 | V23: 14 | W23: 15 | X23: 16 | Y23: 17 | Z23: 18 | AA23: 19 | AB23: 20
H24: 2016 | I24: 2017 | J24: 2018 | K24: 2019 | L24: 2020 | M24: 2021 | N24: 2022 | O24: 2023 | P24: 2024 | Q24: 2025 | R24: 2026 | S24: 2027 | T24: 2028 | U24: 2029 | V24: 2030 | W24: 2031 | X24: 2032 | Y24: 2033 | Z24: 2034 | AA24: 2035 | AB24: 2036
G25: Tipo cambio | H25: =MA!E9 -> 17.5 | I25: =MA!F9 -> 18.2 | J25: =MA!G9 -> 18.928 | K25: =MA!H9 -> 19.68512 | L25: =MA!I9 -> 20.4725248 | M25: =MA!J9 -> 21.29142579 | N25: =MA!K9 -> 22.14308282 | O25: =MA!L9 -> 23.02880614 | P25: =MA!M9 -> 23.94995838 | Q25: =MA!N9 -> 24.90795672 | R25: =MA!O9 -> 25.90427499 | S25: =MA!P9 -> 26.94044599 | T25: =MA!Q9 -> 28.01806382 | U25: =MA!R9 -> 29.13878638 | V25: =MA!S9 -> 30.30433783 | W25: =MA!T9 -> 31.51651135 | X25: =MA!U9 -> 32.7771718 | Y25: =MA!V9 -> 34.08825867 | Z25: =MA!W9 -> 35.45178902 | AA25: =MA!X9 -> 36.86986058 | AB25: =MA!Y9 -> 38.344655
C27: Margen ($MN/litro)
D28: (suma de flete, merma, margen comercial, transporte, ajustes de calidad y costo de manejo)
I29: Indice inflación
I30: 1 | J30: 2 | K30: 3 | L30: 4 | M30: 5 | N30: 6 | O30: 7 | P30: 8 | Q30: 9 | R30: 10 | S30: 11 | T30: 12 | U30: 13 | V30: 14 | W30: 15 | X30: 16 | Y30: 17 | Z30: 18 | AA30: 19 | AB30: 20
H31: 2016 | I31: 2017 | J31: 2018 | K31: 2019 | L31: 2020 | M31: 2021 | N31: 2022 | O31: 2023 | P31: 2024 | Q31: 2025 | R31: 2026 | S31: 2027 | T31: 2028 | U31: 2029 | V31: 2030 | W31: 2031 | X31: 2032 | Y31: 2033 | Z31: 2034 | AA31: 2035 | AB31: 2036
H32: 1.2 | I32: =$H$32*INDEX(Inflacion,MATCH($I$29,Inflacion_CU,0),MATCH(I$31,Inflacion_FU,0)) -> 1.248 | J32: 1.29792 | K32: 1.3498368 | L32: 1.403830272 | M32: 1.459983483 | N32: 1.518382822 | O32: 1.579118135 | P32: 1.64228286 | Q32: 1.707974175 | R32: 1.776293142 | S32: 1.847344868 | T32: 1.921238662 | U32: 1.998088209 | V32: 2.078011737 | W32: 2.161132207 | X32: 2.247577495 | Y32: 2.337480595 | Z32: 2.430979818 | AA32: 2.528219011 | AB32: 2.629347772
H33: Gaceta oficial de la Federación: ACUERDO 24/2015: ACUERDO POR EL QUE SE DA A CONOCER LA BANDA DE PRECIOS MÁXIMOS DE LAS GASOLINAS. Y EL DIÉSEL PARA 2016 Y OTRAS MEDIDAS QUE SE INDICAN.
C35: Escenario precio diésel de origen fósil antes de impuestos ($MN/litro)
I37: 1 | J37: 2 | K37: 3 | L37: 4 | M37: 5 | N37: 6 | O37: 7 | P37: 8 | Q37: 9 | R37: 10 | S37: 11 | T37: 12 | U37: 13 | V37: 14 | W37: 15 | X37: 16 | Y37: 17 | Z37: 18 | AA37: 19 | AB37: 20
H38: 2016 | I38: 2017 | J38: 2018 | K38: 2019 | L38: 2020 | M38: 2021 | N38: 2022 | O38: 2023 | P38: 2024 | Q38: 2025 | R38: 2026 | S38: 2027 | T38: 2028 | U38: 2029 | V38: 2030 | W38: 2031 | X38: 2032 | Y38: 2033 | Z38: 2034 | AA38: 2035 | AB38: 2036
G39: Barato | H39: =(H17*H$25)+H$32 -> 7.54725 | I39: =(I17*I$25)+I$32 -> 7.71082 | J39: 8.0192528 | K39: 8.190416 | L39: 8.51803264 | M39: 8.69693911 | N39: 9.044816674 | O39: 9.231590414 | P39: 9.600854031 | Q39: 9.795587721 | R39: 10.18741123 | S39: 10.59490768 | T39: 11.01870399 | U39: 11.45945215 | V39: 11.91783023 | W39: 12.39454344 | X39: 12.89032518 | Y39: 13.40593819 | Z39: 13.94217571 | AA39: 14.49986274 | AB39: 15.07985725
G40: Moderado | H40: =(H18*H$25)+H$32 -> 7.54725 | I40: 8.54074 | J40: 8.8823696 | K40: 9.985698944 | L40: 10.3851269 | M40: 11.60960616 | N40: 12.0739904 | O40: 13.43204465 | P40: 13.96932644 | Q40: 15.47460185 | R40: 16.09358593 | S40: 16.73732936 | T40: 17.40682254 | U40: 18.10309544 | V40: 18.82721926 | W40: 19.58030803 | X40: 20.36352035 | Y40: 21.17806116 | Z40: 22.02518361 | AA40: 22.90619095 | AB40: 23.82243859
G41: Caro | H41: 7.54725 | I41: 8.54074 | J41: 9.6016336 | K41: 10.7337335 | L41: 12.71899473 | M41: 14.0368287 | N41: 15.43973899 | O41: 17.80751782 | P41: 19.42991695 | Q41: 21.15361598 | R41: 21.99976062 | S41: 22.87975105 | T41: 23.79494109 | U41: 24.74673873 | V41: 25.73660828 | W41: 26.76607261 | X41: 27.83671552 | Y41: 28.95018414 | Z41: 30.10819151 | AA41: 31.31251917 | AB41: 32.56501993
C45: Escenarios consumo diesel (miles de barriles diarios)
D46: Crecimiento medio annual igual a 18.92 miles de barriles diarios, correspondiente con: SENER, 2015. Prospectiva de petróleo y petrolíferos 2015-2029. Disponible desde: https://www.gob.mx/cms/uploads/attachment/file/44327/Prospectiva_Petroleo_Crudo_y_Petroliferos.pdf
D47: Estimación consumo en 2016 en base a estdísticas PEMEX hasta Mayo 2016. Disponible desde: http://www.pemex.com/ri/Publicaciones/Indicadores%20Petroleros/evolumenventas_esp.pdf
G49: Miles barriles diarios | I49: 1 | J49: 2 | K49: 3 | L49: 4 | M49: 5 | N49: 6 | O49: 7 | P49: 8 | Q49: 9 | R49: 10 | S49: 11 | T49: 12 | U49: 13 | V49: 14 | W49: 15 | X49: 16 | Y49: 17 | Z49: 18 | AA49: 19 | AB49: 20
D50: Factor frente escenario moderado | E50: Crecimiento annual medio (miles barriles diarios) | H50: 2016 | I50: 2017 | J50: 2018 | K50: 2019 | L50: 2020 | M50: 2021 | N50: 2022 | O50: 2023 | P50: 2024 | Q50: 2025 | R50: 2026 | S50: 2027 | T50: 2028 | U50: 2029 | V50: 2030 | W50: 2031 | X50: 2032 | Y50: 2033 | Z50: 2034 | AA50: 2035 | AB50: 2036
D51: 0.5 | E51: =E53*D51 -> 9.46 | G51: Bajo | H51: 379.3 | I51: =H51+$E51 -> 388.76 | J51: =I51+$E51 -> 398.22 | K51: 407.68 | L51: 417.14 | M51: 426.6 | N51: 436.06 | O51: 445.52 | P51: 454.98 | Q51: 464.44 | R51: 473.9 | S51: 483.36 | T51: 492.82 | U51: 502.28 | V51: 511.74 | W51: 521.2 | X51: 530.66 | Y51: 540.12 | Z51: 549.58 | AA51: 559.04 | AB51: 568.5
D52: 0.7 | E52: =E53*D52 -> 13.244 | G52: Moderado | H52: 379.3 | I52: =H52+$E52 -> 392.544 | J52: 405.788 | K52: 419.032 | L52: 432.276 | M52: 445.52 | N52: 458.764 | O52: 472.008 | P52: 485.252 | Q52: 498.496 | R52: 511.74 | S52: 524.984 | T52: 538.228 | U52: 551.472 | V52: 564.716 | W52: 577.96 | X52: 591.204 | Y52: 604.448 | Z52: 617.692 | AA52: 630.936 | AB52: 644.18
E53: 18.92 | G53: Alto | H53: 379.3 | I53: 398.22 | J53: 417.14 | K53: 436.06 | L53: 454.98 | M53: 473.9 | N53: 492.82 | O53: 511.74 | P53: 530.66 | Q53: 549.58 | R53: 568.5 | S53: 587.42 | T53: 606.34 | U53: 625.26 | V53: 644.18 | W53: 663.1 | X53: 682.02 | Y53: 700.94 | Z53: 719.86 | AA53: 738.78 | AB53: 757.7
G56: Millones M3 al año
H57: 2016 | I57: 2017 | J57: 2018 | K57: 2019 | L57: 2020 | M57: 2021 | N57: 2022 | O57: 2023 | P57: 2024 | Q57: 2025 | R57: 2026 | S57: 2027 | T57: 2028 | U57: 2029 | V57: 2030 | W57: 2031 | X57: 2032 | Y57: 2033 | Z57: 2034 | AA57: 2035 | AB57: 2036
G58: Bajo | H58: =(H51*365*Litros_barril)/1000000 -> 22.0126755 | I58: 22.5616866 | J58: 23.1106977 | K58: 23.6597088 | L58: 24.2087199 | M58: 24.757731 | N58: 25.3067421 | O58: 25.8557532 | P58: 26.4047643 | Q58: 26.9537754 | R58: 27.5027865 | S58: 28.0517976 | T58: 28.6008087 | U58: 29.1498198 | V58: 29.6988309 | W58: 30.247842 | X58: 30.7968531 | Y58: 31.3458642 | Z58: 31.8948753 | AA58: 32.4438864 | AB58: 32.9928975
G59: Moderado | H59: =(H52*365*Litros_barril)/1000000 -> 22.0126755 | I59: 22.78129104 | J59: 23.54990658 | K59: 24.31852212 | L59: 25.08713766 | M59: 25.8557532 | N59: 26.62436874 | O59: 27.39298428 | P59: 28.16159982 | Q59: 28.93021536 | R59: 29.6988309 | S59: 30.46744644 | T59: 31.23606198 | U59: 32.00467752 | V59: 32.77329306 | W59: 33.5419086 | X59: 34.31052414 | Y59: 35.07913968 | Z59: 35.84775522 | AA59: 36.61637076 | AB59: 37.3849863
G60: Alto | H60: =(H53*365*Litros_barril)/1000000 -> 22.0126755 | I60: 23.1106977 | J60: 24.2087199 | K60: 25.3067421 | L60: 26.4047643 | M60: 27.5027865 | N60: 28.6008087 | O60: 29.6988309 | P60: 30.7968531 | Q60: 31.8948753 | R60: 32.9928975 | S60: 34.0909197 | T60: 35.1889419 | U60: 36.2869641 | V60: 37.3849863 | W60: 38.4830085 | X60: 39.5810307 | Y60: 40.6790529 | Z60: 41.7770751 | AA60: 42.8750973 | AB60: 43.9731195

Sheet DI_C
B3: Calculo precio SPOT Diesel (USD/galón) en base a precios del crudo (USD/barril)
D7: U.S. Gulf Coast Ultra-Low Sulfur No 2 Diesel Spot Price | F7: Cushing OK WTI Spot Price FOB
D8: https://www.eia.gov/dnav/pet/hist/LeafHandler.ashx?n=pet&s=eer_epd2dxl0_pf4_rgc_dpg&f=m | F8: https://www.eia.gov/dnav/pet/hist/LeafHandler.ashx?n=pet&s=rwtc&f=m
D9: 13:38:32 UTC+0200 | F9: 13:36:57 UTC+0200
D10: Source: U.S. Energy Information Administration | F10: Data Source: Thomson Reuters | G10: 0.26417287 | H10: galon/litro
C11: Month | D11: U.S. Gulf Coast Ultra-Low Sulfur No 2 Diesel Spot Price Dollars per Gallon | F11: Cushing OK WTI Spot Price FOB Dollars per Barrel | G11: U.S. Gulf Coast Ultra-Low Sulfur No 2 Diesel Spot Price Dollars per litre
C12: 2016-05-01 | D12: 1.378 | F12: 46.83 | G12: =D12*$G$10 -> 0.3640302149
C13: 2016-04-01 | D13: 1.199 | F13: 40.75 | G13: 0.3167432711
C14: 2016-03-01 | D14: 1.127 | F14: 37.55 | G14: 0.2977228245
C15: 2016-02-01 | D15: 0.999 | F15: 30.32 | G15: 0.2639086971
C16: 2016-01-01 | D16: 0.958 | F16: 31.68 | G16: 0.2530776095
C17: 2015-12-01 | D17: 1.089 | F17: 37.19 | G17: 0.2876842554
C18: 2015-11-01 | D18: 1.351 | F18: 42.44 | G18: 0.3568975474
C19: 2015-10-01 | D19: 1.418 | F19: 46.22 | G19: 0.3745971297
C20: 2015-09-01 | D20: 1.444 | F20: 45.48 | G20: 0.3814656243
C21: 2015-08-01 | D21: 1.463 | F21: 42.87 | G21: 0.3864849088
C22: 2015-07-01 | D22: 1.624 | F22: 50.9 | G22: 0.4290167409
C23: 2015-06-01 | D23: 1.802 | F23: 59.82 | G23: 0.4760395117
C24: 2015-05-01 | D24: 1.917 | F24: 59.27 | G24: 0.5064193918
C25: 2015-04-01 | D25: 1.776 | F25: 54.45 | G25: 0.4691710171
C26: 2015-03-01 | D26: 1.711 | F26: 47.82 | G26: 0.4519997806
C27: 2015-02-01 | D27: 1.824 | F27: 50.58 | G27: 0.4818513149
C28: 2015-01-01 | D28: 1.531 | F28: 47.22 | G28: 0.404448664
C29: 2014-12-01 | D29: 1.784 | F29: 59.29 | G29: 0.4712844001
C30: 2014-11-01 | D30: 2.314 | F30: 75.79 | G30: 0.6112960212
C31: 2014-10-01 | D31: 2.5 | F31: 84.4 | G31: 0.660432175
C32: 2014-09-01 | D32: 2.709 | F32: 93.21 | G32: 0.7156443048
C33: 2014-08-01 | D33: 2.821 | F33: 96.54 | G33: 0.7452316663
C34: 2014-07-01 | D34: 2.842 | F34: 103.59 | G34: 0.7507792965
C35: 2014-06-01 | D35: 2.921 | F35: 105.79 | G35: 0.7716489533
C36: 2014-05-01 | D36: 2.904 | F36: 102.18 | G36: 0.7671580145
C37: 2014-04-01 | D37: 2.932 | F37: 102.07 | G37: 0.7745548548
C38: 2014-03-01 | D38: 2.917 | F38: 100.8 | G38: 0.7705922618
C39: 2014-02-01 | D39: 2.973 | F39: 100.82 | G39: 0.7853859425
C40: 2014-01-01 | D40: 2.913 | F40: 94.62 | G40: 0.7695355703
C41: 2013-12-01 | D41: 2.953 | F41: 97.63 | G41: 0.7801024851
C42: 2013-11-01 | D42: 2.857 | F42: 93.86 | G42: 0.7547418896
C43: 2013-10-01 | D43: 2.935 | F43: 100.54 | G43: 0.7753473735
C44: 2013-09-01 | D44: 3.014 | F44: 106.29 | G44: =D44*$G$10 -> 0.7962170302
C45: 2013-08-01 | D45: 3.04 | F45: 106.57 | G45: 0.8030855248
C46: 2013-07-01 | D46: 2.981 | F46: 104.67 | G46: 0.7874993255
C47: 2013-06-01 | D47: 2.861 | F47: 95.77 | G47: 0.7557985811
C48: 2013-05-01 | D48: 2.843 | F48: 94.51 | G48: 0.7510434694
C49: 2013-04-01 | D49: 2.879 | F49: 92.02 | G49: 0.7605536927
C50: 2013-03-01 | D50: 3.007 | F50: 92.94 | G50: 0.7943678201
C51: 2013-02-01 | D51: 3.2 | F51: 95.31 | G51: 0.845353184
C52: 2013-01-01 | D52: 3.044 | F52: 94.76 | G52: 0.8041422163
C53: 2012-12-01 | D53: 2.96 | F53: 87.86 | G53: 0.7819516952
C54: 2012-11-01 | D54: 2.997 | F54: 86.53 | G54: 0.7917260914
C55: 2012-10-01 | D55: 3.157 | F55: 89.49 | G55: 0.8339937506
C56: 2012-09-01 | D56: 3.186 | F56: 94.51 | G56: 0.8416547638
C57: 2012-08-01 | D57: 3.143 | F57: 94.13 | G57: 0.8302953304
C58: 2012-07-01 | D58: 2.879 | F58: 87.9 | G58: 0.7605536927
C59: 2012-06-01 | D59: 2.667 | F59: 82.3 | G59: 0.7045490443
C60: 2012-05-01 | D60: 2.947 | F60: 94.66 | G60: 0.7785174479
C61: 2012-04-01 | D61: 3.217 | F61: 103.32 | G61: 0.8498441228
C62: 2012-03-01 | D62: 3.27 | F62: 106.16 | G62: 0.8638452849
C63: 2012-02-01 | D63: 3.178 | F63: 102.2 | G63: 0.8395413809
C64: 2012-01-01 | D64: 3.034 | F64: 100.27 | G64: 0.8015004876
C65: 2011-12-01 | D65: 2.878 | F65: 98.56 | G65: 0.7602895199
C66: 2011-11-01 | D66: 3.046 | F66: 97.16 | G66: 0.804670562
C67: 2011-10-01 | D67: 2.96 | F67: 86.32 | G67: 0.7819516952
C68: 2011-09-01 | D68: 2.937 | F68: 85.52 | G68: 0.7758757192
C69: 2011-08-01 | D69: 2.974 | F69: 86.33 | G69: 0.7856501154
C70: 2011-07-01 | D70: 3.117 | F70: 97.3 | G70: 0.8234268358
C71: 2011-06-01 | D71: 3.015 | F71: 96.26 | G71: 0.7964812031
C72: 2011-05-01 | D72: 3.001 | F72: 100.9 | G72: 0.7927827829
C73: 2011-04-01 | D73: 3.231 | F73: 109.53 | G73: 0.853542543
C74: 2011-03-01 | D74: 3.081 | F74: 102.86 | G74: 0.8139166125
C75: 2011-02-01 | D75: 2.793 | F75: 88.58 | G75: 0.7378348259
C76: 2011-01-01 | D76: 2.601 | F76: 89.17 | G76: =D76*$G$10 -> 0.6871136349
C77: 2010-12-01 | D77: 2.446 | F77: 89.15 | G77: 0.64616684
C78: 2010-11-01 | D78: 2.324 | F78: 84.25 | G78: 0.6139377499
C79: 2010-10-01 | D79: 2.252 | F79: 81.89 | G79: 0.5949173032
C80: 2010-09-01 | D80: 2.13 | F80: 75.24 | G80: 0.5626882131
C81: 2010-08-01 | D81: 2.093 | F81: 76.6 | G81: 0.5529138169
C82: 2010-07-01 | D82: 2.042 | F82: 76.32 | G82: 0.5394410005
C83: 2010-06-01 | D83: 2.066 | F83: 75.34 | G83: 0.5457811494
C84: 2010-05-01 | D84: 2.093 | F84: 73.74 | G84: 0.5529138169
C85: 2010-04-01 | D85: 2.267 | F85: 84.29 | G85: 0.5988798963
C86: 2010-03-01 | D86: 2.125 | F86: 81.2 | G86: 0.5613673488
C87: 2010-02-01 | D87: 1.998 | F87: 76.39 | G87: 0.5278173943
C88: 2010-01-01 | D88: 2.035 | F88: 78.33 | G88: 0.5375917905
C89: 2009-12-01 | D89: 1.959 | F89: 74.47 | G89: 0.5175146523
C90: 2009-11-01 | D90: 1.98 | F90: 77.99 | G90: 0.5230622826
C91: 2009-10-01 | D91: 1.941 | F91: 75.72 | G91: 0.5127595407
C92: 2009-09-01 | D92: 1.773 | F92: 69.41 | G92: 0.4683784985
C93: 2009-08-01 | D93: 1.9 | F93: 71.05 | G93: 0.501928453
C94: 2009-07-01 | D94: 1.695 | F94: 64.15 | G94: 0.4477730147
C95: 2009-06-01 | D95: 1.802 | F95: 69.64 | G95: 0.4760395117
C96: 2009-05-01 | D96: 1.489 | F96: 59.03 | G96: 0.3933534034
C97: 2009-04-01 | D97: 1.396 | F97: 49.65 | G97: 0.3687853265
C98: 2009-03-01 | D98: 1.292 | F98: 47.94 | G98: 0.341311348
C99: 2009-02-01 | D99: 1.258 | F99: 39.09 | G99: 0.3323294705
C100: 2009-01-01 | D100: 1.426 | F100: 41.71 | G100: 0.3767105126
C101: 2008-12-01 | D101: 1.372 | F101: 41.12 | G101: 0.3624451776
C102: 2008-11-01 | D102: 1.843 | F102: 57.31 | G102: 0.4868705994
C103: 2008-10-01 | D103: 2.312 | F103: 76.61 | G103: 0.6107676754
C104: 2008-09-01 | D104: 3.076 | F104: 104.11 | G104: 0.8125957481
C105: 2008-08-01 | D105: 3.241 | F105: 116.67 | G105: 0.8561842717
C106: 2008-07-01 | D106: 3.816 | F106: 133.37 | G106: 1.008083672
C107: 2008-06-01 | D107: 3.851 | F107: 133.88 | G107: 1.017329722
C108: 2008-05-01 | D108: 3.733 | F108: 125.4 | G108: =D108*$G$10 -> 0.9861573237
C109: 2008-04-01 | D109: 3.347 | F109: 112.58 | G109: 0.8841865959
C110: 2008-03-01 | D110: 3.153 | F110: 105.45 | G110: 0.8329370591
C111: 2008-02-01 | D111: 2.749 | F111: 95.39 | G111: 0.7262112196
C112: 2008-01-01 | D112: 2.551 | F112: 92.97 | G112: 0.6739049914
C113: 2007-12-01 | D113: 2.561 | F113: 91.69 | G113: 0.6765467201
C114: 2007-11-01 | D114: 2.657 | F114: 94.77 | G114: 0.7019073156
C115: 2007-10-01 | D115: 2.361 | F115: 85.8 | G115: 0.6237121461
C116: 2007-09-01 | D116: 2.294 | F116: 79.92 | G116: 0.6060125638
C117: 2007-08-01 | D117: 2.116 | F117: 72.36 | G117: 0.5589897929
C118: 2007-07-01 | D118: 2.144 | F118: 74.12 | G118: 0.5663866333
C119: 2007-06-01 | D119: 2.093 | F119: 67.49 | G119: 0.5529138169
C120: 2007-05-01 | D120: 2.045 | F120: 63.46 | G120: 0.5402335191
C121: 2007-04-01 | D121: 2.092 | F121: 63.98 | G121: 0.552649644
C122: 2007-03-01 | D122: 1.97 | F122: 60.44 | G122: 0.5204205539
C123: 2007-02-01 | D123: 1.777 | F123: 59.28 | G123: 0.46943519
C124: 2007-01-01 | D124: 1.639 | F124: 54.51 | G124: 0.4329793339
C125: 2006-12-01 | D125: 1.791 | F125: 61.96 | G125: 0.4731336102
C126: 2006-11-01 | D126: 1.797 | F126: 59.08 | G126: 0.4747186474
C127: 2006-10-01 | D127: 1.784 | F127: 58.89 | G127: 0.4712844001
C128: 2006-09-01 | D128: 1.789 | F128: 63.8 | G128: 0.4726052644
C129: 2006-08-01 | D129: 2.233 | F129: 73.04 | G129: 0.5898980187
C130: 2006-07-01 | D130: 2.231 | F130: 74.41 | G130: 0.589369673
C131: 2006-06-01 | D131: 2.108 | F131: 70.95 | G131: 0.55687641

Sheet PO
B2: Escenarios de políticas de apoyo al biodiesel
C4: Escenarios Políticas
D6: Escenario Principal Seleccionado | E6: =EscenarioPrincipalSeleccionado -> Escenario moderado
D7: Instrumento Apoyo Seleccionado | E7: =INDEX(Escenarios_General,MATCH('R1'!$C$10,Escenarios_General_CU,0),MATCH($D$12,Escenarios_General_FU,0)) -> Cuota
D9: Situación Actual | K9: Cálculo Situación futura
K11: 1 | L11: 2 | M11: 3 | N11: 4 | O11: 5 | P11: 6 | Q11: 7 | R11: 8 | S11: 9 | T11: 10 | U11: 11 | V11: 12 | W11: 13 | X11: 14 | Y11: 15 | Z11: 16 | AA11: 17 | AB11: 18 | AC11: 19 | AD11: 20
D12: Instrumento apoyo | E12: 2016 | H12: Actualizado a futuro según: | K12: 2017 | L12: 2018 | M12: 2019 | N12: 2020 | O12: 2021 | P12: 2022 | Q12: 2023 | R12: 2024 | S12: 2025 | T12: 2026 | U12: 2027 | V12: 2028 | W12: 2029 | X12: 2030 | Y12: 2031 | Z12: 2032 | AA12: 2033 | AB12: 2034 | AC12: 2035 | AD12: 2036
D13: Incentivo Económico | E13: 1.71 | F13: peso/litro | H13: Indice inflación | K13: =$E$13*INDEX(Inflacion,MATCH($H$13,Inflacion_CU,0),MATCH(K$12,Inflacion_FU,0)) -> 1.7784 | L13: 1.849536 | M13: 1.92351744 | N13: 2.000458138 | O13: 2.080476463 | P13: 2.163695522 | Q13: 2.250243342 | R13: 2.340253076 | S13: 2.433863199 | T13: 2.531217727 | U13: 2.632466436 | V13: 2.737765094 | W13: 2.847275698 | X13: 2.961166725 | Y13: 3.079613394 | Z13: 3.20279793 | AA13: 3.330909847 | AB13: 3.464146241 | AC13: 3.602712091 | AD13: 3.746820575 | AE13: peso/litro
D14: Cuota | E14: 0 | F14: % demanda | H14: No aplica | K14: =INDEX(ValoresCuotaObligatoria,MATCH($E6,ValoresCuotaObligatoria_CU,0),MATCH(K$12,ValoresCuotaObligatoria_FU,0)) -> 0 | L14: 0.005 | M14: 0.0075 | N14: 0.01 | O14: 0.01 | P14: 0.0125 | Q14: 0.0125 | R14: 0.015 | S14: 0.0175 | T14: 0.0175 | U14: 0.02 | V14: 0.0225 | W14: 0.025 | X14: 0.0275 | Y14: 0.03 | Z14: 0.0325 | AA14: 0.0325 | AB14: 0.0325 | AC14: 0.0325 | AD14: 0.0325 | AE14: % demanda
K17: Introducción de valores a aplicar en caso de cuota obligatoria
K19: 2017 | L19: 2018 | M19: 2019 | N19: 2020 | O19: 2021 | P19: 2022 | Q19: 2023 | R19: 2024 | S19: 2025 | T19: 2026 | U19: 2027 | V19: 2028 | W19: 2029 | X19: 2030 | Y19: 2031 | Z19: 2032 | AA19: 2033 | AB19: 2034 | AC19: 2035 | AD19: 2036
J20: Escenario optimista | K20: 0 | L20: 0.008 | M20: 0.008 | N20: 0.013 | O20: 0.018 | P20: 0.023 | Q20: 0.033 | R20: 0.043 | S20: 0.053 | T20: 0.063 | U20: 0.063 | V20: 0.063 | W20: 0.063 | X20: 0.063 | Y20: 0.063 | Z20: 0.063 | AA20: 0.063 | AB20: 0.063 | AC20: 0.063 | AD20: 0.063
J21: Escenario moderado | K21: 0 | L21: 0.005 | M21: 0.0075 | N21: 0.01 | O21: 0.01 | P21: 0.0125 | Q21: 0.0125 | R21: 0.015 | S21: 0.0175 | T21: 0.0175 | U21: 0.02 | V21: 0.0225 | W21: 0.025 | X21: 0.0275 | Y21: 0.03 | Z21: 0.0325 | AA21: 0.0325 | AB21: 0.0325 | AC21: 0.0325 | AD21: 0.0325
J22: Escenario tendencial | K22: 0 | L22: 0 | M22: 0 | N22: 0 | O22: 0 | P22: 0 | Q22: 0 | R22: 0 | S22: 0 | T22: 0 | U22: 0 | V22: 0 | W22: 0 | X22: 0 | Y22: 0 | Z22: 0 | AA22: 0 | AB22: 0 | AC22: 0 | AD22: 0

Sheet MA
B2: Escenarios macroeconómicos
C5: Tipo de cambio $MX/USD
C7: Obtenido como el incremento medio del período 2006-2015. Fuente: Fuente: Banco de México. Serie histórica del tipo de cambio, Tipo de cambio peso dólar desde 1954 | F7: 1 | G7: 2 | H7: 3 | I7: 4 | J7: 5 | K7: 6 | L7: 7 | M7: 8 | N7: 9 | O7: 10 | P7: 11 | Q7: 12 | R7: 13 | S7: 14 | T7: 15 | U7: 16 | V7: 17 | W7: 18 | X7: 19 | Y7: 20
C8: Apreciación media anual del dólar frente al peso | E8: 2016 | F8: 2017 | G8: 2018 | H8: 2019 | I8: 2020 | J8: 2021 | K8: 2022 | L8: 2023 | M8: 2024 | N8: 2025 | O8: 2026 | P8: 2027 | Q8: 2028 | R8: 2029 | S8: 2030 | T8: 2031 | U8: 2032 | V8: 2033 | W8: 2034 | X8: 2035 | Y8: 2036
C9: 1.04 | D9: Tipo cambio | E9: 17.5 | F9: =E9*$C$9 -> 18.2 | G9: =F9*$C$9 -> 18.928 | H9: 19.68512 | I9: 20.4725248 | J9: 21.29142579 | K9: 22.14308282 | L9: 23.02880614 | M9: 23.94995838 | N9: 24.90795672 | O9: 25.90427499 | P9: 26.94044599 | Q9: 28.01806382 | R9: 29.13878638 | S9: 30.30433783 | T9: 31.51651135 | U9: 32.7771718 | V9: 34.08825867 | W9: 35.45178902 | X9: 36.86986058 | Y9: 38.344655
C12: Inflación
E14: Valor medio entre Mayo 2006-Mayo2016=4%. Fuente: World Bank: Inflation, consumer prices (annual %) -> http://data.worldbank.org/indicator/FP.CPI.TOTL.ZG | F14: 1 | G14: 2 | H14: 3 | I14: 4 | J14: 5 | K14: 6 | L14: 7 | M14: 8 | N14: 9 | O14: 10 | P14: 11 | Q14: 12 | R14: 13 | S14: 14 | T14: 15 | U14: 16 | V14: 17 | W14: 18 | X14: 19 | Y14: 20
E15: 2016 | F15: 2017 | G15: 2018 | H15: 2019 | I15: 2020 | J15: 2021 | K15: 2022 | L15: 2023 | M15: 2024 | N15: 2025 | O15: 2026 | P15: 2027 | Q15: 2028 | R15: 2029 | S15: 2030 | T15: 2031 | U15: 2032 | V15: 2033 | W15: 2034 | X15: 2035 | Y15: 2036
D16: Inflación media del período | E16: 0.04 | F16: 0.04 | G16: 0.04 | H16: 0.04 | I16: 0.04 | J16: 0.04 | K16: 0.04 | L16: 0.04 | M16: 0.04 | N16: 0.04 | O16: 0.04 | P16: 0.04 | Q16: 0.04 | R16: 0.04 | S16: 0.04 | T16: 0.04 | U16: 0.04 | V16: 0.04 | W16: 0.04 | X16: 0.04 | Y16: 0.04
D17: Indice inflación | E17: 1 | F17: =E17*(1+F16) -> 1.04 | G17: =F17*(1+G16) -> 1.0816 | H17: =G17*(1+H16) -> 1.124864 | I17: =H17*(1+I16) -> 1.16985856 | J17: 1.216652902 | K17: 1.265319018 | L17: 1.315931779 | M17: 1.36856905 | N17: 1.423311812 | O17: 1.480244285 | P17: 1.539454056 | Q17: 1.601032219 | R17: 1.665073507 | S17: 1.731676448 | T17: 1.800943506 | U17: 1.872981246 | V17: 1.947900496 | W17: 2.025816515 | X17: 2.106849176 | Y17: 2.191123143

Sheet P
B3: Hoja de parámetros generales
C5: Rangos para campos de selección
C7: Escenarios_PrecioCrudo | E7: Escenarios_ConsumoDiesel | G7: Escenarios_Demograficos | I7: Escenarios_Recuperacion | K7: Instrumento_politica
C8: Escenarios_PrecioCrudo | E8: Escenarios_ConsumoDiesel | G8: Escenarios_Demograficos | I8: Escenarios_Recuperacion | K8: Instrumento_politica
C9: Barato | E9: Bajo | G9: Crecimiento moderado | I9: Optimista | K9: Ninguno
C10: Moderado | E10: Moderado | G10: Crecimiento alto | I10: Central | K10: Incentivo Económico
C11: Caro | E11: Alto | G11: Crecimiento bajo | I11: Pesimista | K11: Cuota
C14: Parámetros técnicos
D16: Poder calorífico biodiesel | E16: 37.86 | F16: MJ/litro biodiesel
D17: Poder calorífico gasoleo mineral | E17: 35.86 | F17: MJ/litro gasoleo
D18: Equivalencia energética gasoleo /biodiesel | E18: =E16/E17 -> 1.055772448 | F18: litros gasoleo/ litro biodiesel
D19: Equivalencia litros por barril | E19: 159 | F19: litros/barril
